{"text_format":"1","workbook":"xlsx","n_sheets":1,"sheets":["Sheet3"],"not_rendered":{"charts":0,"images":0,"macros":1,"external_links":0,"defined_names":6,"comments":0,"pivot_tables":0},"unopened":[],"bounds":{"document_bytes":16777216,"sheet_cells":100000,"rows_first":2000,"rows_last":500,"rows_between":2000,"halvings":0,"cell_chars":16384,"cell_head_chars":4096},"cells_cut":0,"cells_raw":0,"read":"whole","date_system":"1900"}

{"sheet":"Sheet3","index":0,"n_rows":35,"n_cols":377,"rows_kept":35,"cut":false,"hidden":false,"merged":[[2,376,4,376]]}
[null,null,null,null,null,null,null,null,null,null,null,null,null,null,null,null,null,null,null,null,null,null,null,null,null,null,null,null,null,null,null,null,null,null,null,null,null,null,null,null,null,null,null,null,null,null,null,null,null,null,null,null,null,null,null,null,null,null,null,null,null,null,null,null,null,null,null,null,null,null,null,null,null,null,null,null,null,null,null,null,null,null,null,null,null,null,null,null,null,null,null,null,null,null,null,null,null,null,null,null,null,null,null,null,null,null,null,null,null,null,null,null,null,null,null,null,null,null,null,null,null,null,null,null,null,null,null,null,null,null,null,null,null,null,null,null,null,null,null,null,null,null,null,null,null,null,null,null,null,null,null,null,null,null,null,null,null,null,null,null,null,null,null,null,null,null,null,null,null,null,null,null,null,null,null,null,null,null,null,null,null,null,null,null,null,null,null,null,null,null,null,null,null,null,null,null,null,null,null,null,null,null,null,null,null,null,null,null,null,null,null,null,null,null,null,null,null,null,null,null,null,null,null,null,null,null,null,null,null,null,null,null,null,null,null,null,null,null,null,null,null,null,null,null,null,null,null,null,null,null,null,null,null,null,null,null,null,null,null,null,null,null,null,null,null,null,null,null,null,null,null,null,null,null,null,null,null,null,null,null,null,null,null,null,null,null,null,null,null,null,null,null,null,null,null,null,null,null,null,null,null,null,null,null,null,null,null,null,null,null,null,null,null,null,null,null,null,null,null,null,null,null,null,null,null,null,null,null,null,null,null,null,null,null,null,null,null,null,null,null,null,null,null,null,null,null,null,null,null,null,null,null,null,null,null,null,null,null,null,null,null,null,null,null,null,null,null,null,null,null,null,null,null,null,null,null,{"$f":"MATCH(mois,MonthsNames,0)","v":1}]
[null,null,null,{"$f":"\"جدول تسجيل يوميات الأستاذ لشهر \"&mois& \" سنة \" & année","v":"جدول تسجيل يوميات الأستاذ لشهر janvier سنة 2019"},null,null,null,null,null,null,null,null,null,null,null,null,null,null,null,null,null,null,null,null,null,null,null,null,null,null,null,null,null,null,null,null,null,null,null,null,null,null,null,null,null,null,null,null,null,null,null,null,null,null,null,null,null,null,null,null,null,null,null,null,null,null,null,null,null,null,null,null,null,null,null,null,null,null,null,null,null,null,null,null,null,null,null,null,null,null,null,null,null,null,null,null,null,null,null,null,null,null,null,null,null,null,null,null,null,null,null,null,null,null,null,null,null,null,null,null,null,null,null,null,null,null,null,null,null,null,null,null,null,null,null,null,null,null,null,null,null,null,null,null,null,null,null,null,null,null,null,null,null,null,null,null,null,null,null,null,null,null,null,null,null,null,null,null,null,null,null,null,null,null,null,null,null,null,null,null,null,null,null,null,null,null,null,null,null,null,null,null,null,null,null,null,null,null,null,null,null,null,null,null,null,null,null,null,null,null,null,null,null,null,null,null,null,null,null,null,null,null,null,null,null,null,null,null,null,null,null,null,null,null,null,null,null,null,null,null,null,null,null,null,null,null,null,null,null,null,null,null,null,null,null,null,null,null,null,null,null,null,null,null,null,null,null,null,null,null,null,null,null,null,null,null,null,null,null,null,null,null,null,null,null,null,null,null,null,null,null,null,null,null,null,null,null,null,null,null,null,null,null,null,null,null,null,null,null,null,null,null,null,null,null,null,null,null,null,null,null,null,null,null,null,null,null,null,null,null,null,null,null,null,null,null,null,null,null,null,null,null,null,null,null,null,null,null,null,null,null,null,null,null,null,null,null,null,null,null,null,null,null,null,null,null,null,null,null,null,null,null,null,null,null,null,{"$f":"SUM(NM6:NM35)","v":15}]
[null,null,null,null,{"$f":"IF(E$4=\"\",\"\",IF(WEEKDAY(E$4)>=6,\"\",COUNTIF(E$5:E$35,0)))","v":1},2,1,"","",0,1,0,2,1,"","",0,0,0,2,0,"","",0,0,1,2,0,"","",0,0,1,1,0,"","",0,0,0,0,0,"","",0,0,0,0,0,"","",0,0,0,0,0,"","",0,0,0,0,0,{"$f":"IF(BL$4=\"\",\"\",IF(WEEKDAY(BL$4)>=6,\"\",COUNTIF(BL$5:BL$35,0)))","v":""},{"$f":"IF(BM$4=\"\",\"\",IF(WEEKDAY(BM$4)>=6,\"\",COUNTIF(BM$5:BM$35,0)))","v":""},"","","",0,0,0,0,0,"","",0,0,0,0,0,"","",0,0,0,0,0,"","",0,0,0,0,0,"","",0,0,0,0,0,"","",0,0,0,0,0,"","",0,0,0,0,0,"","",0,0,0,0,0,"","",0,0,0,"",{"$f":"IF(DY$4=\"\",\"\",IF(WEEKDAY(DY$4)>=6,\"\",COUNTIF(DY$5:DY$35,0)))","v":0},0,"","",0,0,0,0,0,"","",0,0,0,0,0,"","",0,0,0,0,0,"","",0,0,0,0,0,"","",0,0,0,0,0,"","",0,0,0,0,0,"","",0,0,0,0,0,"","",0,0,0,0,0,"","",0,"",0,0,{"$f":"IF(GK$4=\"\",\"\",IF(WEEKDAY(GK$4)>=6,\"\",COUNTIF(GK$5:GK$35,0)))","v":0},0,"","",0,0,0,0,0,"","",0,0,0,0,0,"","",0,0,0,0,0,"","",0,0,0,0,0,"","",0,0,0,0,0,"","",0,0,0,0,0,"","",0,0,0,0,0,"","",0,0,0,0,0,"","",0,0,0,0,{"$f":"IF(IW$4=\"\",\"\",IF(WEEKDAY(IW$4)>=6,\"\",COUNTIF(IW$5:IW$35,0)))","v":0},"","",0,0,0,0,0,"","",0,0,0,0,0,"","",0,0,0,0,0,"","",0,0,"",0,0,0,"","",0,0,0,0,0,"","",0,0,0,0,0,"","",0,0,0,0,0,"","",0,0,0,0,0,"","",0,0,0,0,{"$f":"IF(LI$4=\"\",\"\",IF(WEEKDAY(LI$4)>=6,\"\",COUNTIF(LI$5:LI$35,0)))","v":0},"","",0,0,0,0,0,"","",0,0,0,0,0,"","",0,0,0,0,0,"","","",0,0,0,0,0,"","",0,0,0,0,0,"","",0,0,0,0,0,"","",0,0,0,0,0,"","",0,0,0,"الغيابات"]
[null,null,null,null,{"$f":"E5","v":"2019-01-01"},{"$f":"F5","v":"2019-01-02"},"2019-01-03","2019-01-04","2019-01-05","2019-01-06","2019-01-07","2019-01-08","2019-01-09","2019-01-10","2019-01-11","2019-01-12","2019-01-13","2019-01-14","2019-01-15","2019-01-16","2019-01-17","2019-01-18","2019-01-19","2019-01-20","2019-01-21","2019-01-22","2019-01-23","2019-01-24","2019-01-25","2019-01-26","2019-01-27","2019-01-28","2019-01-29","2019-01-30","2019-01-31",{"$f":"AJ5","v":"2019-02-01"},"2019-02-02","2019-02-03","2019-02-04","2019-02-05","2019-02-06","2019-02-07","2019-02-08","2019-02-09","2019-02-10","2019-02-11","2019-02-12","2019-02-13","2019-02-14","2019-02-15","2019-02-16","2019-02-17","2019-02-18","2019-02-19","2019-02-20","2019-02-21","2019-02-22","2019-02-23","2019-02-24","2019-02-25","2019-02-26","2019-02-27","2019-02-28","","","",{"$f":"BO5","v":"2019-03-01"},"2019-03-02","2019-03-03","2019-03-04","2019-03-05","2019-03-06","2019-03-07","2019-03-08","2019-03-09","2019-03-10","2019-03-11","2019-03-12","2019-03-13","2019-03-14","2019-03-15","2019-03-16","2019-03-17","2019-03-18","2019-03-19","2019-03-20","2019-03-21","2019-03-22","2019-03-23","2019-03-24","2019-03-25","2019-03-26","2019-03-27","2019-03-28","2019-03-29","2019-03-30","2019-03-31",{"$f":"CT5","v":"2019-04-01"},"2019-04-02","2019-04-03","2019-04-04","2019-04-05","2019-04-06","2019-04-07","2019-04-08","2019-04-09","2019-04-10","2019-04-11","2019-04-12","2019-04-13","2019-04-14","2019-04-15","2019-04-16","2019-04-17","2019-04-18","2019-04-19","2019-04-20","2019-04-21","2019-04-22","2019-04-23","2019-04-24","2019-04-25","2019-04-26","2019-04-27","2019-04-28","2019-04-29","2019-04-30","",{"$f":"DY5","v":"2019-05-01"},"2019-05-02","2019-05-03","2019-05-04","2019-05-05","2019-05-06","2019-05-07","2019-05-08","2019-05-09","2019-05-10","2019-05-11","2019-05-12","2019-05-13","2019-05-14","2019-05-15","2019-05-16","2019-05-17","2019-05-18","2019-05-19","2019-05-20","2019-05-21","2019-05-22","2019-05-23","2019-05-24","2019-05-25","2019-05-26","2019-05-27","2019-05-28","2019-05-29","2019-05-30","2019-05-31",{"$f":"FD5","v":"2019-06-01"},"2019-06-02","2019-06-03","2019-06-04","2019-06-05","2019-06-06","2019-06-07","2019-06-08","2019-06-09","2019-06-10","2019-06-11","2019-06-12","2019-06-13","2019-06-14","2019-06-15","2019-06-16","2019-06-17","2019-06-18","2019-06-19","2019-06-20","2019-06-21","2019-06-22","2019-06-23","2019-06-24","2019-06-25","2019-06-26","2019-06-27","2019-06-28","2019-06-29","2019-06-30","",{"$f":"GI5","v":"2019-07-01"},"2019-07-02","2019-07-03","2019-07-04","2019-07-05","2019-07-06","2019-07-07","2019-07-08","2019-07-09","2019-07-10","2019-07-11","2019-07-12","2019-07-13","2019-07-14","2019-07-15","2019-07-16","2019-07-17","2019-07-18","2019-07-19","2019-07-20","2019-07-21","2019-07-22","2019-07-23","2019-07-24","2019-07-25","2019-07-26","2019-07-27","2019-07-28","2019-07-29","2019-07-30","2019-07-31",{"$f":"HN5","v":"2019-08-01"},"2019-08-02","2019-08-03","2019-08-04","2019-08-05","2019-08-06","2019-08-07","2019-08-08","2019-08-09","2019-08-10","2019-08-11","2019-08-12","2019-08-13","2019-08-14","2019-08-15","2019-08-16","2019-08-17","2019-08-18","2019-08-19","2019-08-20","2019-08-21","2019-08-22","2019-08-23","2019-08-24","2019-08-25","2019-08-26","2019-08-27","2019-08-28","2019-08-29","2019-08-30","2019-08-31",{"$f":"IS5","v":"2019-09-01"},"2019-09-02","2019-09-03",{"$f":"IV5","v":"2019-09-04"},"2019-09-05","2019-09-06","2019-09-07","2019-09-08","2019-09-09","2019-09-10","2019-09-11","2019-09-12","2019-09-13","2019-09-14","2019-09-15","2019-09-16","2019-09-17","2019-09-18","2019-09-19","2019-09-20","2019-09-21","2019-09-22","2019-09-23","2019-09-24","2019-09-25","2019-09-26","2019-09-27","2019-09-28","2019-09-29","2019-09-30","",{"$f":"JX5","v":"2019-10-01"},{"$f":"JY5","v":"2019-10-02"},"2019-10-03","2019-10-04","2019-10-05","2019-10-06","2019-10-07","2019-10-08","2019-10-09","2019-10-10","2019-10-11","2019-10-12","2019-10-13","2019-10-14","2019-10-15","2019-10-16","2019-10-17","2019-10-18","2019-10-19","2019-10-20","2019-10-21","2019-10-22","2019-10-23","2019-10-24","2019-10-25","2019-10-26","2019-10-27","2019-10-28","2019-10-29","2019-10-30","2019-10-31",{"$f":"LC5","v":"2019-11-01"},"2019-11-02","2019-11-03","2019-11-04","2019-11-05","2019-11-06","2019-11-07","2019-11-08","2019-11-09","2019-11-10","2019-11-11","2019-11-12","2019-11-13","2019-11-14","2019-11-15","2019-11-16","2019-11-17","2019-11-18","2019-11-19","2019-11-20","2019-11-21","2019-11-22","2019-11-23","2019-11-24","2019-11-25","2019-11-26","2019-11-27","2019-11-28","2019-11-29","2019-11-30","",{"$f":"MH5","v":"2019-12-01"},"2019-12-02","2019-12-03","2019-12-04","2019-12-05","2019-12-06","2019-12-07","2019-12-08","2019-12-09","2019-12-10","2019-12-11","2019-12-12","2019-12-13","2019-12-14","2019-12-15","2019-12-16","2019-12-17","2019-12-18","2019-12-19","2019-12-20","2019-12-21","2019-12-22","2019-12-23","2019-12-24","2019-12-25","2019-12-26","2019-12-27","2019-12-28","2019-12-29","2019-12-30","2019-12-31"]
[null,null,null,null,{"$f":"DATE(année,1,1)","v":"2019-01-01"},{"$f":"IF(E5=\"\",\"\",IF(MONTH(E5+1)>MONTH(E5),\"\",E5+1))","v":"2019-01-02"},{"$f":"IF(F5=\"\",\"\",IF(MONTH(F5+1)>MONTH(E5),\"\",F5+1))","v":"2019-01-03"},{"$f":"IF(G5=\"\",\"\",IF(MONTH(G5+1)>MONTH(E5),\"\",G5+1))","v":"2019-01-04"},{"$f":"IF(H5=\"\",\"\",IF(MONTH(H5+1)>MONTH(E5),\"\",H5+1))","v":"2019-01-05"},{"$f":"IF(I5=\"\",\"\",IF(MONTH(I5+1)>MONTH(E5),\"\",I5+1))","v":"2019-01-06"},{"$f":"IF(J5=\"\",\"\",IF(MONTH(J5+1)>MONTH(E5),\"\",J5+1))","v":"2019-01-07"},{"$f":"IF(K5=\"\",\"\",IF(MONTH(K5+1)>MONTH(E5),\"\",K5+1))","v":"2019-01-08"},{"$f":"IF(L5=\"\",\"\",IF(MONTH(L5+1)>MONTH(E5),\"\",L5+1))","v":"2019-01-09"},{"$f":"IF(M5=\"\",\"\",IF(MONTH(M5+1)>MONTH(E5),\"\",M5+1))","v":"2019-01-10"},{"$f":"IF(N5=\"\",\"\",IF(MONTH(N5+1)>MONTH(E5),\"\",N5+1))","v":"2019-01-11"},{"$f":"IF(O5=\"\",\"\",IF(MONTH(O5+1)>MONTH(E5),\"\",O5+1))","v":"2019-01-12"},{"$f":"IF(P5=\"\",\"\",IF(MONTH(P5+1)>MONTH(E5),\"\",P5+1))","v":"2019-01-13"},{"$f":"IF(Q5=\"\",\"\",IF(MONTH(Q5+1)>MONTH(E5),\"\",Q5+1))","v":"2019-01-14"},{"$f":"IF(R5=\"\",\"\",IF(MONTH(R5+1)>MONTH(E5),\"\",R5+1))","v":"2019-01-15"},{"$f":"IF(S5=\"\",\"\",IF(MONTH(S5+1)>MONTH(E5),\"\",S5+1))","v":"2019-01-16"},{"$f":"IF(T5=\"\",\"\",IF(MONTH(T5+1)>MONTH(E5),\"\",T5+1))","v":"2019-01-17"},{"$f":"IF(U5=\"\",\"\",IF(MONTH(U5+1)>MONTH(E5),\"\",U5+1))","v":"2019-01-18"},{"$f":"IF(V5=\"\",\"\",IF(MONTH(V5+1)>MONTH(E5),\"\",V5+1))","v":"2019-01-19"},{"$f":"IF(W5=\"\",\"\",IF(MONTH(W5+1)>MONTH(E5),\"\",W5+1))","v":"2019-01-20"},{"$f":"IF(X5=\"\",\"\",IF(MONTH(X5+1)>MONTH(E5),\"\",X5+1))","v":"2019-01-21"},{"$f":"IF(Y5=\"\",\"\",IF(MONTH(Y5+1)>MONTH(E5),\"\",Y5+1))","v":"2019-01-22"},{"$f":"IF(Z5=\"\",\"\",IF(MONTH(Z5+1)>MONTH(E5),\"\",Z5+1))","v":"2019-01-23"},{"$f":"IF(AA5=\"\",\"\",IF(MONTH(AA5+1)>MONTH(E5),\"\",AA5+1))","v":"2019-01-24"},{"$f":"IF(AB5=\"\",\"\",IF(MONTH(AB5+1)>MONTH(E5),\"\",AB5+1))","v":"2019-01-25"},{"$f":"IF(AC5=\"\",\"\",IF(MONTH(AC5+1)>MONTH(E5),\"\",AC5+1))","v":"2019-01-26"},{"$f":"IF(AD5=\"\",\"\",IF(MONTH(AD5+1)>MONTH(E5),\"\",AD5+1))","v":"2019-01-27"},{"$f":"IF(AE5=\"\",\"\",IF(MONTH(AE5+1)>MONTH(E5),\"\",AE5+1))","v":"2019-01-28"},{"$f":"IF(AF5=\"\",\"\",IF(MONTH(AF5+1)>MONTH(E5),\"\",AF5+1))","v":"2019-01-29"},{"$f":"IF(AG5=\"\",\"\",IF(MONTH(AG5+1)>MONTH(E5),\"\",AG5+1))","v":"2019-01-30"},{"$f":"IF(AH5=\"\",\"\",IF(MONTH(AH5+1)>MONTH(E5),\"\",AH5+1))","v":"2019-01-31"},{"$f":"DATE(année,2,1)","v":"2019-02-01"},{"$f":"IF(AJ5=\"\",\"\",IF(MONTH(AJ5+1)>MONTH(AJ5),\"\",AJ5+1))","v":"2019-02-02"},{"$f":"IF(AK5=\"\",\"\",IF(MONTH(AK5+1)>MONTH(AJ5),\"\",AK5+1))","v":"2019-02-03"},{"$f":"IF(AL5=\"\",\"\",IF(MONTH(AL5+1)>MONTH(AJ5),\"\",AL5+1))","v":"2019-02-04"},{"$f":"IF(AM5=\"\",\"\",IF(MONTH(AM5+1)>MONTH(AJ5),\"\",AM5+1))","v":"2019-02-05"},{"$f":"IF(AN5=\"\",\"\",IF(MONTH(AN5+1)>MONTH(AJ5),\"\",AN5+1))","v":"2019-02-06"},{"$f":"IF(AO5=\"\",\"\",IF(MONTH(AO5+1)>MONTH(AJ5),\"\",AO5+1))","v":"2019-02-07"},{"$f":"IF(AP5=\"\",\"\",IF(MONTH(AP5+1)>MONTH(AJ5),\"\",AP5+1))","v":"2019-02-08"},{"$f":"IF(AQ5=\"\",\"\",IF(MONTH(AQ5+1)>MONTH(AJ5),\"\",AQ5+1))","v":"2019-02-09"},{"$f":"IF(AR5=\"\",\"\",IF(MONTH(AR5+1)>MONTH(AJ5),\"\",AR5+1))","v":"2019-02-10"},{"$f":"IF(AS5=\"\",\"\",IF(MONTH(AS5+1)>MONTH(AJ5),\"\",AS5+1))","v":"2019-02-11"},{"$f":"IF(AT5=\"\",\"\",IF(MONTH(AT5+1)>MONTH(AJ5),\"\",AT5+1))","v":"2019-02-12"},{"$f":"IF(AU5=\"\",\"\",IF(MONTH(AU5+1)>MONTH(AJ5),\"\",AU5+1))","v":"2019-02-13"},{"$f":"IF(AV5=\"\",\"\",IF(MONTH(AV5+1)>MONTH(AJ5),\"\",AV5+1))","v":"2019-02-14"},{"$f":"IF(AW5=\"\",\"\",IF(MONTH(AW5+1)>MONTH(AJ5),\"\",AW5+1))","v":"2019-02-15"},{"$f":"IF(AX5=\"\",\"\",IF(MONTH(AX5+1)>MONTH(AJ5),\"\",AX5+1))","v":"2019-02-16"},{"$f":"IF(AY5=\"\",\"\",IF(MONTH(AY5+1)>MONTH(AJ5),\"\",AY5+1))","v":"2019-02-17"},{"$f":"IF(AZ5=\"\",\"\",IF(MONTH(AZ5+1)>MONTH(AJ5),\"\",AZ5+1))","v":"2019-02-18"},{"$f":"IF(BA5=\"\",\"\",IF(MONTH(BA5+1)>MONTH(AJ5),\"\",BA5+1))","v":"2019-02-19"},{"$f":"IF(BB5=\"\",\"\",IF(MONTH(BB5+1)>MONTH(AJ5),\"\",BB5+1))","v":"2019-02-20"},{"$f":"IF(BC5=\"\",\"\",IF(MONTH(BC5+1)>MONTH(AJ5),\"\",BC5+1))","v":"2019-02-21"},{"$f":"IF(BD5=\"\",\"\",IF(MONTH(BD5+1)>MONTH(AJ5),\"\",BD5+1))","v":"2019-02-22"},{"$f":"IF(BE5=\"\",\"\",IF(MONTH(BE5+1)>MONTH(AJ5),\"\",BE5+1))","v":"2019-02-23"},{"$f":"IF(BF5=\"\",\"\",IF(MONTH(BF5+1)>MONTH(AJ5),\"\",BF5+1))","v":"2019-02-24"},{"$f":"IF(BG5=\"\",\"\",IF(MONTH(BG5+1)>MONTH(AJ5),\"\",BG5+1))","v":"2019-02-25"},{"$f":"IF(BH5=\"\",\"\",IF(MONTH(BH5+1)>MONTH(AJ5),\"\",BH5+1))","v":"2019-02-26"},{"$f":"IF(BI5=\"\",\"\",IF(MONTH(BI5+1)>MONTH(AJ5),\"\",BI5+1))","v":"2019-02-27"},{"$f":"IF(BJ5=\"\",\"\",IF(MONTH(BJ5+1)>MONTH(AJ5),\"\",BJ5+1))","v":"2019-02-28"},{"$f":"IF(BK5=\"\",\"\",IF(MONTH(BK5+1)>MONTH(AJ5),\"\",BK5+1))","v":""},{"$f":"IF(BL5=\"\",\"\",IF(MONTH(BL5+1)>MONTH(AJ5),\"\",BL5+1))","v":""},{"$f":"IF(BM5=\"\",\"\",IF(MONTH(BM5+1)>MONTH(AJ5),\"\",BM5+1))","v":""},{"$f":"DATE(année,3,1)","v":"2019-03-01"},{"$f":"IF(BO5=\"\",\"\",IF(MONTH(BO5+1)>MONTH(BO5),\"\",BO5+1))","v":"2019-03-02"},{"$f":"IF(BP5=\"\",\"\",IF(MONTH(BP5+1)>MONTH(BO5),\"\",BP5+1))","v":"2019-03-03"},{"$f":"IF(BQ5=\"\",\"\",IF(MONTH(BQ5+1)>MONTH(BO5),\"\",BQ5+1))","v":"2019-03-04"},{"$f":"IF(BR5=\"\",\"\",IF(MONTH(BR5+1)>MONTH(BO5),\"\",BR5+1))","v":"2019-03-05"},{"$f":"IF(BS5=\"\",\"\",IF(MONTH(BS5+1)>MONTH(BO5),\"\",BS5+1))","v":"2019-03-06"},{"$f":"IF(BT5=\"\",\"\",IF(MONTH(BT5+1)>MONTH(BO5),\"\",BT5+1))","v":"2019-03-07"},{"$f":"IF(BU5=\"\",\"\",IF(MONTH(BU5+1)>MONTH(BO5),\"\",BU5+1))","v":"2019-03-08"},{"$f":"IF(BV5=\"\",\"\",IF(MONTH(BV5+1)>MONTH(BO5),\"\",BV5+1))","v":"2019-03-09"},{"$f":"IF(BW5=\"\",\"\",IF(MONTH(BW5+1)>MONTH(BO5),\"\",BW5+1))","v":"2019-03-10"},{"$f":"IF(BX5=\"\",\"\",IF(MONTH(BX5+1)>MONTH(BO5),\"\",BX5+1))","v":"2019-03-11"},{"$f":"IF(BY5=\"\",\"\",IF(MONTH(BY5+1)>MONTH(BO5),\"\",BY5+1))","v":"2019-03-12"},{"$f":"IF(BZ5=\"\",\"\",IF(MONTH(BZ5+1)>MONTH(BO5),\"\",BZ5+1))","v":"2019-03-13"},{"$f":"IF(CA5=\"\",\"\",IF(MONTH(CA5+1)>MONTH(BO5),\"\",CA5+1))","v":"2019-03-14"},{"$f":"IF(CB5=\"\",\"\",IF(MONTH(CB5+1)>MONTH(BO5),\"\",CB5+1))","v":"2019-03-15"},{"$f":"IF(CC5=\"\",\"\",IF(MONTH(CC5+1)>MONTH(BO5),\"\",CC5+1))","v":"2019-03-16"},{"$f":"IF(CD5=\"\",\"\",IF(MONTH(CD5+1)>MONTH(BO5),\"\",CD5+1))","v":"2019-03-17"},{"$f":"IF(CE5=\"\",\"\",IF(MONTH(CE5+1)>MONTH(BO5),\"\",CE5+1))","v":"2019-03-18"},{"$f":"IF(CF5=\"\",\"\",IF(MONTH(CF5+1)>MONTH(BO5),\"\",CF5+1))","v":"2019-03-19"},{"$f":"IF(CG5=\"\",\"\",IF(MONTH(CG5+1)>MONTH(BO5),\"\",CG5+1))","v":"2019-03-20"},{"$f":"IF(CH5=\"\",\"\",IF(MONTH(CH5+1)>MONTH(BO5),\"\",CH5+1))","v":"2019-03-21"},{"$f":"IF(CI5=\"\",\"\",IF(MONTH(CI5+1)>MONTH(BO5),\"\",CI5+1))","v":"2019-03-22"},{"$f":"IF(CJ5=\"\",\"\",IF(MONTH(CJ5+1)>MONTH(BO5),\"\",CJ5+1))","v":"2019-03-23"},{"$f":"IF(CK5=\"\",\"\",IF(MONTH(CK5+1)>MONTH(BO5),\"\",CK5+1))","v":"2019-03-24"},{"$f":"IF(CL5=\"\",\"\",IF(MONTH(CL5+1)>MONTH(BO5),\"\",CL5+1))","v":"2019-03-25"},{"$f":"IF(CM5=\"\",\"\",IF(MONTH(CM5+1)>MONTH(BO5),\"\",CM5+1))","v":"2019-03-26"},{"$f":"IF(CN5=\"\",\"\",IF(MONTH(CN5+1)>MONTH(BO5),\"\",CN5+1))","v":"2019-03-27"},{"$f":"IF(CO5=\"\",\"\",IF(MONTH(CO5+1)>MONTH(BO5),\"\",CO5+1))","v":"2019-03-28"},{"$f":"IF(CP5=\"\",\"\",IF(MONTH(CP5+1)>MONTH(BO5),\"\",CP5+1))","v":"2019-03-29"},{"$f":"IF(CQ5=\"\",\"\",IF(MONTH(CQ5+1)>MONTH(BO5),\"\",CQ5+1))","v":"2019-03-30"},{"$f":"IF(CR5=\"\",\"\",IF(MONTH(CR5+1)>MONTH(BO5),\"\",CR5+1))","v":"2019-03-31"},{"$f":"DATE(année,4,1)","v":"2019-04-01"},{"$f":"IF(CT5=\"\",\"\",IF(MONTH(CT5+1)>MONTH(CT5),\"\",CT5+1))","v":"2019-04-02"},{"$f":"IF(CU5=\"\",\"\",IF(MONTH(CU5+1)>MONTH(CT5),\"\",CU5+1))","v":"2019-04-03"},{"$f":"IF(CV5=\"\",\"\",IF(MONTH(CV5+1)>MONTH(CT5),\"\",CV5+1))","v":"2019-04-04"},{"$f":"IF(CW5=\"\",\"\",IF(MONTH(CW5+1)>MONTH(CT5),\"\",CW5+1))","v":"2019-04-05"},{"$f":"IF(CX5=\"\",\"\",IF(MONTH(CX5+1)>MONTH(CT5),\"\",CX5+1))","v":"2019-04-06"},{"$f":"IF(CY5=\"\",\"\",IF(MONTH(CY5+1)>MONTH(CT5),\"\",CY5+1))","v":"2019-04-07"},{"$f":"IF(CZ5=\"\",\"\",IF(MONTH(CZ5+1)>MONTH(CT5),\"\",CZ5+1))","v":"2019-04-08"},{"$f":"IF(DA5=\"\",\"\",IF(MONTH(DA5+1)>MONTH(CT5),\"\",DA5+1))","v":"2019-04-09"},{"$f":"IF(DB5=\"\",\"\",IF(MONTH(DB5+1)>MONTH(CT5),\"\",DB5+1))","v":"2019-04-10"},{"$f":"IF(DC5=\"\",\"\",IF(MONTH(DC5+1)>MONTH(CT5),\"\",DC5+1))","v":"2019-04-11"},{"$f":"IF(DD5=\"\",\"\",IF(MONTH(DD5+1)>MONTH(CT5),\"\",DD5+1))","v":"2019-04-12"},{"$f":"IF(DE5=\"\",\"\",IF(MONTH(DE5+1)>MONTH(CT5),\"\",DE5+1))","v":"2019-04-13"},{"$f":"IF(DF5=\"\",\"\",IF(MONTH(DF5+1)>MONTH(CT5),\"\",DF5+1))","v":"2019-04-14"},{"$f":"IF(DG5=\"\",\"\",IF(MONTH(DG5+1)>MONTH(CT5),\"\",DG5+1))","v":"2019-04-15"},{"$f":"IF(DH5=\"\",\"\",IF(MONTH(DH5+1)>MONTH(CT5),\"\",DH5+1))","v":"2019-04-16"},{"$f":"IF(DI5=\"\",\"\",IF(MONTH(DI5+1)>MONTH(CT5),\"\",DI5+1))","v":"2019-04-17"},{"$f":"IF(DJ5=\"\",\"\",IF(MONTH(DJ5+1)>MONTH(CT5),\"\",DJ5+1))","v":"2019-04-18"},{"$f":"IF(DK5=\"\",\"\",IF(MONTH(DK5+1)>MONTH(CT5),\"\",DK5+1))","v":"2019-04-19"},{"$f":"IF(DL5=\"\",\"\",IF(MONTH(DL5+1)>MONTH(CT5),\"\",DL5+1))","v":"2019-04-20"},{"$f":"IF(DM5=\"\",\"\",IF(MONTH(DM5+1)>MONTH(CT5),\"\",DM5+1))","v":"2019-04-21"},{"$f":"IF(DN5=\"\",\"\",IF(MONTH(DN5+1)>MONTH(CT5),\"\",DN5+1))","v":"2019-04-22"},{"$f":"IF(DO5=\"\",\"\",IF(MONTH(DO5+1)>MONTH(CT5),\"\",DO5+1))","v":"2019-04-23"},{"$f":"IF(DP5=\"\",\"\",IF(MONTH(DP5+1)>MONTH(CT5),\"\",DP5+1))","v":"2019-04-24"},{"$f":"IF(DQ5=\"\",\"\",IF(MONTH(DQ5+1)>MONTH(CT5),\"\",DQ5+1))","v":"2019-04-25"},{"$f":"IF(DR5=\"\",\"\",IF(MONTH(DR5+1)>MONTH(CT5),\"\",DR5+1))","v":"2019-04-26"},{"$f":"IF(DS5=\"\",\"\",IF(MONTH(DS5+1)>MONTH(CT5),\"\",DS5+1))","v":"2019-04-27"},{"$f":"IF(DT5=\"\",\"\",IF(MONTH(DT5+1)>MONTH(CT5),\"\",DT5+1))","v":"2019-04-28"},{"$f":"IF(DU5=\"\",\"\",IF(MONTH(DU5+1)>MONTH(CT5),\"\",DU5+1))","v":"2019-04-29"},{"$f":"IF(DV5=\"\",\"\",IF(MONTH(DV5+1)>MONTH(CT5),\"\",DV5+1))","v":"2019-04-30"},{"$f":"IF(DW5=\"\",\"\",IF(MONTH(DW5+1)>MONTH(CT5),\"\",DW5+1))","v":""},{"$f":"DATE(année,5,1)","v":"2019-05-01"},{"$f":"IF(DY5=\"\",\"\",IF(MONTH(DY5+1)>MONTH(DY5),\"\",DY5+1))","v":"2019-05-02"},{"$f":"IF(DZ5=\"\",\"\",IF(MONTH(DZ5+1)>MONTH(DY5),\"\",DZ5+1))","v":"2019-05-03"},{"$f":"IF(EA5=\"\",\"\",IF(MONTH(EA5+1)>MONTH(DY5),\"\",EA5+1))","v":"2019-05-04"},{"$f":"IF(EB5=\"\",\"\",IF(MONTH(EB5+1)>MONTH(DY5),\"\",EB5+1))","v":"2019-05-05"},{"$f":"IF(EC5=\"\",\"\",IF(MONTH(EC5+1)>MONTH(DY5),\"\",EC5+1))","v":"2019-05-06"},{"$f":"IF(ED5=\"\",\"\",IF(MONTH(ED5+1)>MONTH(DY5),\"\",ED5+1))","v":"2019-05-07"},{"$f":"IF(EE5=\"\",\"\",IF(MONTH(EE5+1)>MONTH(DY5),\"\",EE5+1))","v":"2019-05-08"},{"$f":"IF(EF5=\"\",\"\",IF(MONTH(EF5+1)>MONTH(DY5),\"\",EF5+1))","v":"2019-05-09"},{"$f":"IF(EG5=\"\",\"\",IF(MONTH(EG5+1)>MONTH(DY5),\"\",EG5+1))","v":"2019-05-10"},{"$f":"IF(EH5=\"\",\"\",IF(MONTH(EH5+1)>MONTH(DY5),\"\",EH5+1))","v":"2019-05-11"},{"$f":"IF(EI5=\"\",\"\",IF(MONTH(EI5+1)>MONTH(DY5),\"\",EI5+1))","v":"2019-05-12"},{"$f":"IF(EJ5=\"\",\"\",IF(MONTH(EJ5+1)>MONTH(DY5),\"\",EJ5+1))","v":"2019-05-13"},{"$f":"IF(EK5=\"\",\"\",IF(MONTH(EK5+1)>MONTH(DY5),\"\",EK5+1))","v":"2019-05-14"},{"$f":"IF(EL5=\"\",\"\",IF(MONTH(EL5+1)>MONTH(DY5),\"\",EL5+1))","v":"2019-05-15"},{"$f":"IF(EM5=\"\",\"\",IF(MONTH(EM5+1)>MONTH(DY5),\"\",EM5+1))","v":"2019-05-16"},{"$f":"IF(EN5=\"\",\"\",IF(MONTH(EN5+1)>MONTH(DY5),\"\",EN5+1))","v":"2019-05-17"},{"$f":"IF(EO5=\"\",\"\",IF(MONTH(EO5+1)>MONTH(DY5),\"\",EO5+1))","v":"2019-05-18"},{"$f":"IF(EP5=\"\",\"\",IF(MONTH(EP5+1)>MONTH(DY5),\"\",EP5+1))","v":"2019-05-19"},{"$f":"IF(EQ5=\"\",\"\",IF(MONTH(EQ5+1)>MONTH(DY5),\"\",EQ5+1))","v":"2019-05-20"},{"$f":"IF(ER5=\"\",\"\",IF(MONTH(ER5+1)>MONTH(DY5),\"\",ER5+1))","v":"2019-05-21"},{"$f":"IF(ES5=\"\",\"\",IF(MONTH(ES5+1)>MONTH(DY5),\"\",ES5+1))","v":"2019-05-22"},{"$f":"IF(ET5=\"\",\"\",IF(MONTH(ET5+1)>MONTH(DY5),\"\",ET5+1))","v":"2019-05-23"},{"$f":"IF(EU5=\"\",\"\",IF(MONTH(EU5+1)>MONTH(DY5),\"\",EU5+1))","v":"2019-05-24"},{"$f":"IF(EV5=\"\",\"\",IF(MONTH(EV5+1)>MONTH(DY5),\"\",EV5+1))","v":"2019-05-25"},{"$f":"IF(EW5=\"\",\"\",IF(MONTH(EW5+1)>MONTH(DY5),\"\",EW5+1))","v":"2019-05-26"},{"$f":"IF(EX5=\"\",\"\",IF(MONTH(EX5+1)>MONTH(DY5),\"\",EX5+1))","v":"2019-05-27"},{"$f":"IF(EY5=\"\",\"\",IF(MONTH(EY5+1)>MONTH(DY5),\"\",EY5+1))","v":"2019-05-28"},{"$f":"IF(EZ5=\"\",\"\",IF(MONTH(EZ5+1)>MONTH(DY5),\"\",EZ5+1))","v":"2019-05-29"},{"$f":"IF(FA5=\"\",\"\",IF(MONTH(FA5+1)>MONTH(DY5),\"\",FA5+1))","v":"2019-05-30"},{"$f":"IF(FB5=\"\",\"\",IF(MONTH(FB5+1)>MONTH(DY5),\"\",FB5+1))","v":"2019-05-31"},{"$f":"DATE(année,6,1)","v":"2019-06-01"},{"$f":"IF(FD5=\"\",\"\",IF(MONTH(FD5+1)>MONTH(FD5),\"\",FD5+1))","v":"2019-06-02"},{"$f":"IF(FE5=\"\",\"\",IF(MONTH(FE5+1)>MONTH(FD5),\"\",FE5+1))","v":"2019-06-03"},{"$f":"IF(FF5=\"\",\"\",IF(MONTH(FF5+1)>MONTH(FD5),\"\",FF5+1))","v":"2019-06-04"},{"$f":"IF(FG5=\"\",\"\",IF(MONTH(FG5+1)>MONTH(FD5),\"\",FG5+1))","v":"2019-06-05"},{"$f":"IF(FH5=\"\",\"\",IF(MONTH(FH5+1)>MONTH(FD5),\"\",FH5+1))","v":"2019-06-06"},{"$f":"IF(FI5=\"\",\"\",IF(MONTH(FI5+1)>MONTH(FD5),\"\",FI5+1))","v":"2019-06-07"},{"$f":"IF(FJ5=\"\",\"\",IF(MONTH(FJ5+1)>MONTH(FD5),\"\",FJ5+1))","v":"2019-06-08"},{"$f":"IF(FK5=\"\",\"\",IF(MONTH(FK5+1)>MONTH(FD5),\"\",FK5+1))","v":"2019-06-09"},{"$f":"IF(FL5=\"\",\"\",IF(MONTH(FL5+1)>MONTH(FD5),\"\",FL5+1))","v":"2019-06-10"},{"$f":"IF(FM5=\"\",\"\",IF(MONTH(FM5+1)>MONTH(FD5),\"\",FM5+1))","v":"2019-06-11"},{"$f":"IF(FN5=\"\",\"\",IF(MONTH(FN5+1)>MONTH(FD5),\"\",FN5+1))","v":"2019-06-12"},{"$f":"IF(FO5=\"\",\"\",IF(MONTH(FO5+1)>MONTH(FD5),\"\",FO5+1))","v":"2019-06-13"},{"$f":"IF(FP5=\"\",\"\",IF(MONTH(FP5+1)>MONTH(FD5),\"\",FP5+1))","v":"2019-06-14"},{"$f":"IF(FQ5=\"\",\"\",IF(MONTH(FQ5+1)>MONTH(FD5),\"\",FQ5+1))","v":"2019-06-15"},{"$f":"IF(FR5=\"\",\"\",IF(MONTH(FR5+1)>MONTH(FD5),\"\",FR5+1))","v":"2019-06-16"},{"$f":"IF(FS5=\"\",\"\",IF(MONTH(FS5+1)>MONTH(FD5),\"\",FS5+1))","v":"2019-06-17"},{"$f":"IF(FT5=\"\",\"\",IF(MONTH(FT5+1)>MONTH(FD5),\"\",FT5+1))","v":"2019-06-18"},{"$f":"IF(FU5=\"\",\"\",IF(MONTH(FU5+1)>MONTH(FD5),\"\",FU5+1))","v":"2019-06-19"},{"$f":"IF(FV5=\"\",\"\",IF(MONTH(FV5+1)>MONTH(FD5),\"\",FV5+1))","v":"2019-06-20"},{"$f":"IF(FW5=\"\",\"\",IF(MONTH(FW5+1)>MONTH(FD5),\"\",FW5+1))","v":"2019-06-21"},{"$f":"IF(FX5=\"\",\"\",IF(MONTH(FX5+1)>MONTH(FD5),\"\",FX5+1))","v":"2019-06-22"},{"$f":"IF(FY5=\"\",\"\",IF(MONTH(FY5+1)>MONTH(FD5),\"\",FY5+1))","v":"2019-06-23"},{"$f":"IF(FZ5=\"\",\"\",IF(MONTH(FZ5+1)>MONTH(FD5),\"\",FZ5+1))","v":"2019-06-24"},{"$f":"IF(GA5=\"\",\"\",IF(MONTH(GA5+1)>MONTH(FD5),\"\",GA5+1))","v":"2019-06-25"},{"$f":"IF(GB5=\"\",\"\",IF(MONTH(GB5+1)>MONTH(FD5),\"\",GB5+1))","v":"2019-06-26"},{"$f":"IF(GC5=\"\",\"\",IF(MONTH(GC5+1)>MONTH(FD5),\"\",GC5+1))","v":"2019-06-27"},{"$f":"IF(GD5=\"\",\"\",IF(MONTH(GD5+1)>MONTH(FD5),\"\",GD5+1))","v":"2019-06-28"},{"$f":"IF(GE5=\"\",\"\",IF(MONTH(GE5+1)>MONTH(FD5),\"\",GE5+1))","v":"2019-06-29"},{"$f":"IF(GF5=\"\",\"\",IF(MONTH(GF5+1)>MONTH(FD5),\"\",GF5+1))","v":"2019-06-30"},{"$f":"IF(GG5=\"\",\"\",IF(MONTH(GG5+1)>MONTH(FD5),\"\",GG5+1))","v":""},{"$f":"DATE(année,7,1)","v":"2019-07-01"},{"$f":"IF(GI5=\"\",\"\",IF(MONTH(GI5+1)>MONTH(GI5),\"\",GI5+1))","v":"2019-07-02"},{"$f":"IF(GJ5=\"\",\"\",IF(MONTH(GJ5+1)>MONTH(GI5),\"\",GJ5+1))","v":"2019-07-03"},{"$f":"IF(GK5=\"\",\"\",IF(MONTH(GK5+1)>MONTH(GI5),\"\",GK5+1))","v":"2019-07-04"},{"$f":"IF(GL5=\"\",\"\",IF(MONTH(GL5+1)>MONTH(GI5),\"\",GL5+1))","v":"2019-07-05"},{"$f":"IF(GM5=\"\",\"\",IF(MONTH(GM5+1)>MONTH(GI5),\"\",GM5+1))","v":"2019-07-06"},{"$f":"IF(GN5=\"\",\"\",IF(MONTH(GN5+1)>MONTH(GI5),\"\",GN5+1))","v":"2019-07-07"},{"$f":"IF(GO5=\"\",\"\",IF(MONTH(GO5+1)>MONTH(GI5),\"\",GO5+1))","v":"2019-07-08"},{"$f":"IF(GP5=\"\",\"\",IF(MONTH(GP5+1)>MONTH(GI5),\"\",GP5+1))","v":"2019-07-09"},{"$f":"IF(GQ5=\"\",\"\",IF(MONTH(GQ5+1)>MONTH(GI5),\"\",GQ5+1))","v":"2019-07-10"},{"$f":"IF(GR5=\"\",\"\",IF(MONTH(GR5+1)>MONTH(GI5),\"\",GR5+1))","v":"2019-07-11"},{"$f":"IF(GS5=\"\",\"\",IF(MONTH(GS5+1)>MONTH(GI5),\"\",GS5+1))","v":"2019-07-12"},{"$f":"IF(GT5=\"\",\"\",IF(MONTH(GT5+1)>MONTH(GI5),\"\",GT5+1))","v":"2019-07-13"},{"$f":"IF(GU5=\"\",\"\",IF(MONTH(GU5+1)>MONTH(GI5),\"\",GU5+1))","v":"2019-07-14"},{"$f":"IF(GV5=\"\",\"\",IF(MONTH(GV5+1)>MONTH(GI5),\"\",GV5+1))","v":"2019-07-15"},{"$f":"IF(GW5=\"\",\"\",IF(MONTH(GW5+1)>MONTH(GI5),\"\",GW5+1))","v":"2019-07-16"},{"$f":"IF(GX5=\"\",\"\",IF(MONTH(GX5+1)>MONTH(GI5),\"\",GX5+1))","v":"2019-07-17"},{"$f":"IF(GY5=\"\",\"\",IF(MONTH(GY5+1)>MONTH(GI5),\"\",GY5+1))","v":"2019-07-18"},{"$f":"IF(GZ5=\"\",\"\",IF(MONTH(GZ5+1)>MONTH(GI5),\"\",GZ5+1))","v":"2019-07-19"},{"$f":"IF(HA5=\"\",\"\",IF(MONTH(HA5+1)>MONTH(GI5),\"\",HA5+1))","v":"2019-07-20"},{"$f":"IF(HB5=\"\",\"\",IF(MONTH(HB5+1)>MONTH(GI5),\"\",HB5+1))","v":"2019-07-21"},{"$f":"IF(HC5=\"\",\"\",IF(MONTH(HC5+1)>MONTH(GI5),\"\",HC5+1))","v":"2019-07-22"},{"$f":"IF(HD5=\"\",\"\",IF(MONTH(HD5+1)>MONTH(GI5),\"\",HD5+1))","v":"2019-07-23"},{"$f":"IF(HE5=\"\",\"\",IF(MONTH(HE5+1)>MONTH(GI5),\"\",HE5+1))","v":"2019-07-24"},{"$f":"IF(HF5=\"\",\"\",IF(MONTH(HF5+1)>MONTH(GI5),\"\",HF5+1))","v":"2019-07-25"},{"$f":"IF(HG5=\"\",\"\",IF(MONTH(HG5+1)>MONTH(GI5),\"\",HG5+1))","v":"2019-07-26"},{"$f":"IF(HH5=\"\",\"\",IF(MONTH(HH5+1)>MONTH(GI5),\"\",HH5+1))","v":"2019-07-27"},{"$f":"IF(HI5=\"\",\"\",IF(MONTH(HI5+1)>MONTH(GI5),\"\",HI5+1))","v":"2019-07-28"},{"$f":"IF(HJ5=\"\",\"\",IF(MONTH(HJ5+1)>MONTH(GI5),\"\",HJ5+1))","v":"2019-07-29"},{"$f":"IF(HK5=\"\",\"\",IF(MONTH(HK5+1)>MONTH(GI5),\"\",HK5+1))","v":"2019-07-30"},{"$f":"IF(HL5=\"\",\"\",IF(MONTH(HL5+1)>MONTH(GI5),\"\",HL5+1))","v":"2019-07-31"},{"$f":"DATE(année,8,1)","v":"2019-08-01"},{"$f":"IF(HN5=\"\",\"\",IF(MONTH(HN5+1)>MONTH(HN5),\"\",HN5+1))","v":"2019-08-02"},{"$f":"IF(HO5=\"\",\"\",IF(MONTH(HO5+1)>MONTH(HN5),\"\",HO5+1))","v":"2019-08-03"},{"$f":"IF(HP5=\"\",\"\",IF(MONTH(HP5+1)>MONTH(HN5),\"\",HP5+1))","v":"2019-08-04"},{"$f":"IF(HQ5=\"\",\"\",IF(MONTH(HQ5+1)>MONTH(HN5),\"\",HQ5+1))","v":"2019-08-05"},{"$f":"IF(HR5=\"\",\"\",IF(MONTH(HR5+1)>MONTH(HN5),\"\",HR5+1))","v":"2019-08-06"},{"$f":"IF(HS5=\"\",\"\",IF(MONTH(HS5+1)>MONTH(HN5),\"\",HS5+1))","v":"2019-08-07"},{"$f":"IF(HT5=\"\",\"\",IF(MONTH(HT5+1)>MONTH(HN5),\"\",HT5+1))","v":"2019-08-08"},{"$f":"IF(HU5=\"\",\"\",IF(MONTH(HU5+1)>MONTH(HN5),\"\",HU5+1))","v":"2019-08-09"},{"$f":"IF(HV5=\"\",\"\",IF(MONTH(HV5+1)>MONTH(HN5),\"\",HV5+1))","v":"2019-08-10"},{"$f":"IF(HW5=\"\",\"\",IF(MONTH(HW5+1)>MONTH(HN5),\"\",HW5+1))","v":"2019-08-11"},{"$f":"IF(HX5=\"\",\"\",IF(MONTH(HX5+1)>MONTH(HN5),\"\",HX5+1))","v":"2019-08-12"},{"$f":"IF(HY5=\"\",\"\",IF(MONTH(HY5+1)>MONTH(HN5),\"\",HY5+1))","v":"2019-08-13"},{"$f":"IF(HZ5=\"\",\"\",IF(MONTH(HZ5+1)>MONTH(HN5),\"\",HZ5+1))","v":"2019-08-14"},{"$f":"IF(IA5=\"\",\"\",IF(MONTH(IA5+1)>MONTH(HN5),\"\",IA5+1))","v":"2019-08-15"},{"$f":"IF(IB5=\"\",\"\",IF(MONTH(IB5+1)>MONTH(HN5),\"\",IB5+1))","v":"2019-08-16"},{"$f":"IF(IC5=\"\",\"\",IF(MONTH(IC5+1)>MONTH(HN5),\"\",IC5+1))","v":"2019-08-17"},{"$f":"IF(ID5=\"\",\"\",IF(MONTH(ID5+1)>MONTH(HN5),\"\",ID5+1))","v":"2019-08-18"},{"$f":"IF(IE5=\"\",\"\",IF(MONTH(IE5+1)>MONTH(HN5),\"\",IE5+1))","v":"2019-08-19"},{"$f":"IF(IF5=\"\",\"\",IF(MONTH(IF5+1)>MONTH(HN5),\"\",IF5+1))","v":"2019-08-20"},{"$f":"IF(IG5=\"\",\"\",IF(MONTH(IG5+1)>MONTH(HN5),\"\",IG5+1))","v":"2019-08-21"},{"$f":"IF(IH5=\"\",\"\",IF(MONTH(IH5+1)>MONTH(HN5),\"\",IH5+1))","v":"2019-08-22"},{"$f":"IF(II5=\"\",\"\",IF(MONTH(II5+1)>MONTH(HN5),\"\",II5+1))","v":"2019-08-23"},{"$f":"IF(IJ5=\"\",\"\",IF(MONTH(IJ5+1)>MONTH(HN5),\"\",IJ5+1))","v":"2019-08-24"},{"$f":"IF(IK5=\"\",\"\",IF(MONTH(IK5+1)>MONTH(HN5),\"\",IK5+1))","v":"2019-08-25"},{"$f":"IF(IL5=\"\",\"\",IF(MONTH(IL5+1)>MONTH(HN5),\"\",IL5+1))","v":"2019-08-26"},{"$f":"IF(IM5=\"\",\"\",IF(MONTH(IM5+1)>MONTH(HN5),\"\",IM5+1))","v":"2019-08-27"},{"$f":"IF(IN5=\"\",\"\",IF(MONTH(IN5+1)>MONTH(HN5),\"\",IN5+1))","v":"2019-08-28"},{"$f":"IF(IO5=\"\",\"\",IF(MONTH(IO5+1)>MONTH(HN5),\"\",IO5+1))","v":"2019-08-29"},{"$f":"IF(IP5=\"\",\"\",IF(MONTH(IP5+1)>MONTH(HN5),\"\",IP5+1))","v":"2019-08-30"},{"$f":"IF(IQ5=\"\",\"\",IF(MONTH(IQ5+1)>MONTH(HN5),\"\",IQ5+1))","v":"2019-08-31"},{"$f":"DATE(année,9,1)","v":"2019-09-01"},{"$f":"IF(IS5=\"\",\"\",IF(MONTH(IS5+1)>MONTH(IS5),\"\",IS5+1))","v":"2019-09-02"},{"$f":"IF(IT5=\"\",\"\",IF(MONTH(IT5+1)>MONTH(IS5),\"\",IT5+1))","v":"2019-09-03"},{"$f":"IF(IU5=\"\",\"\",IF(MONTH(IU5+1)>MONTH(IS5),\"\",IU5+1))","v":"2019-09-04"},{"$f":"IF(IV5=\"\",\"\",IF(MONTH(IV5+1)>MONTH(IS5),\"\",IV5+1))","v":"2019-09-05"},{"$f":"IF(IW5=\"\",\"\",IF(MONTH(IW5+1)>MONTH(IS5),\"\",IW5+1))","v":"2019-09-06"},{"$f":"IF(IX5=\"\",\"\",IF(MONTH(IX5+1)>MONTH(IS5),\"\",IX5+1))","v":"2019-09-07"},{"$f":"IF(IY5=\"\",\"\",IF(MONTH(IY5+1)>MONTH(IS5),\"\",IY5+1))","v":"2019-09-08"},{"$f":"IF(IZ5=\"\",\"\",IF(MONTH(IZ5+1)>MONTH(IS5),\"\",IZ5+1))","v":"2019-09-09"},{"$f":"IF(JA5=\"\",\"\",IF(MONTH(JA5+1)>MONTH(IS5),\"\",JA5+1))","v":"2019-09-10"},{"$f":"IF(JB5=\"\",\"\",IF(MONTH(JB5+1)>MONTH(IS5),\"\",JB5+1))","v":"2019-09-11"},{"$f":"IF(JC5=\"\",\"\",IF(MONTH(JC5+1)>MONTH(IS5),\"\",JC5+1))","v":"2019-09-12"},{"$f":"IF(JD5=\"\",\"\",IF(MONTH(JD5+1)>MONTH(IS5),\"\",JD5+1))","v":"2019-09-13"},{"$f":"IF(JE5=\"\",\"\",IF(MONTH(JE5+1)>MONTH(IS5),\"\",JE5+1))","v":"2019-09-14"},{"$f":"IF(JF5=\"\",\"\",IF(MONTH(JF5+1)>MONTH(IS5),\"\",JF5+1))","v":"2019-09-15"},{"$f":"IF(JG5=\"\",\"\",IF(MONTH(JG5+1)>MONTH(IS5),\"\",JG5+1))","v":"2019-09-16"},{"$f":"IF(JH5=\"\",\"\",IF(MONTH(JH5+1)>MONTH(IS5),\"\",JH5+1))","v":"2019-09-17"},{"$f":"IF(JI5=\"\",\"\",IF(MONTH(JI5+1)>MONTH(IS5),\"\",JI5+1))","v":"2019-09-18"},{"$f":"IF(JJ5=\"\",\"\",IF(MONTH(JJ5+1)>MONTH(IS5),\"\",JJ5+1))","v":"2019-09-19"},{"$f":"IF(JK5=\"\",\"\",IF(MONTH(JK5+1)>MONTH(IS5),\"\",JK5+1))","v":"2019-09-20"},{"$f":"IF(JL5=\"\",\"\",IF(MONTH(JL5+1)>MONTH(IS5),\"\",JL5+1))","v":"2019-09-21"},{"$f":"IF(JM5=\"\",\"\",IF(MONTH(JM5+1)>MONTH(IS5),\"\",JM5+1))","v":"2019-09-22"},{"$f":"IF(JN5=\"\",\"\",IF(MONTH(JN5+1)>MONTH(IS5),\"\",JN5+1))","v":"2019-09-23"},{"$f":"IF(JO5=\"\",\"\",IF(MONTH(JO5+1)>MONTH(IS5),\"\",JO5+1))","v":"2019-09-24"},{"$f":"IF(JP5=\"\",\"\",IF(MONTH(JP5+1)>MONTH(IS5),\"\",JP5+1))","v":"2019-09-25"},{"$f":"IF(JQ5=\"\",\"\",IF(MONTH(JQ5+1)>MONTH(IS5),\"\",JQ5+1))","v":"2019-09-26"},{"$f":"IF(JR5=\"\",\"\",IF(MONTH(JR5+1)>MONTH(IS5),\"\",JR5+1))","v":"2019-09-27"},{"$f":"IF(JS5=\"\",\"\",IF(MONTH(JS5+1)>MONTH(IS5),\"\",JS5+1))","v":"2019-09-28"},{"$f":"IF(JT5=\"\",\"\",IF(MONTH(JT5+1)>MONTH(IS5),\"\",JT5+1))","v":"2019-09-29"},{"$f":"IF(JU5=\"\",\"\",IF(MONTH(JU5+1)>MONTH(IS5),\"\",JU5+1))","v":"2019-09-30"},{"$f":"IF(JV5=\"\",\"\",IF(MONTH(JV5+1)>MONTH(IS5),\"\",JV5+1))","v":""},{"$f":"DATE(année,10,1)","v":"2019-10-01"},{"$f":"IF(JX5=\"\",\"\",IF(MONTH(JX5+1)>MONTH(JX5),\"\",JX5+1))","v":"2019-10-02"},{"$f":"IF(JY5=\"\",\"\",IF(MONTH(JY5+1)>MONTH(JX5),\"\",JY5+1))","v":"2019-10-03"},{"$f":"IF(JZ5=\"\",\"\",IF(MONTH(JZ5+1)>MONTH(JX5),\"\",JZ5+1))","v":"2019-10-04"},{"$f":"IF(KA5=\"\",\"\",IF(MONTH(KA5+1)>MONTH(JX5),\"\",KA5+1))","v":"2019-10-05"},{"$f":"IF(KB5=\"\",\"\",IF(MONTH(KB5+1)>MONTH(JX5),\"\",KB5+1))","v":"2019-10-06"},{"$f":"IF(KC5=\"\",\"\",IF(MONTH(KC5+1)>MONTH(JX5),\"\",KC5+1))","v":"2019-10-07"},{"$f":"IF(KD5=\"\",\"\",IF(MONTH(KD5+1)>MONTH(JX5),\"\",KD5+1))","v":"2019-10-08"},{"$f":"IF(KE5=\"\",\"\",IF(MONTH(KE5+1)>MONTH(JX5),\"\",KE5+1))","v":"2019-10-09"},{"$f":"IF(KF5=\"\",\"\",IF(MONTH(KF5+1)>MONTH(JX5),\"\",KF5+1))","v":"2019-10-10"},{"$f":"IF(KG5=\"\",\"\",IF(MONTH(KG5+1)>MONTH(JX5),\"\",KG5+1))","v":"2019-10-11"},{"$f":"IF(KH5=\"\",\"\",IF(MONTH(KH5+1)>MONTH(JX5),\"\",KH5+1))","v":"2019-10-12"},{"$f":"IF(KI5=\"\",\"\",IF(MONTH(KI5+1)>MONTH(JX5),\"\",KI5+1))","v":"2019-10-13"},{"$f":"IF(KJ5=\"\",\"\",IF(MONTH(KJ5+1)>MONTH(JX5),\"\",KJ5+1))","v":"2019-10-14"},{"$f":"IF(KK5=\"\",\"\",IF(MONTH(KK5+1)>MONTH(JX5),\"\",KK5+1))","v":"2019-10-15"},{"$f":"IF(KL5=\"\",\"\",IF(MONTH(KL5+1)>MONTH(JX5),\"\",KL5+1))","v":"2019-10-16"},{"$f":"IF(KM5=\"\",\"\",IF(MONTH(KM5+1)>MONTH(JX5),\"\",KM5+1))","v":"2019-10-17"},{"$f":"IF(KN5=\"\",\"\",IF(MONTH(KN5+1)>MONTH(JX5),\"\",KN5+1))","v":"2019-10-18"},{"$f":"IF(KO5=\"\",\"\",IF(MONTH(KO5+1)>MONTH(JX5),\"\",KO5+1))","v":"2019-10-19"},{"$f":"IF(KP5=\"\",\"\",IF(MONTH(KP5+1)>MONTH(JX5),\"\",KP5+1))","v":"2019-10-20"},{"$f":"IF(KQ5=\"\",\"\",IF(MONTH(KQ5+1)>MONTH(JX5),\"\",KQ5+1))","v":"2019-10-21"},{"$f":"IF(KR5=\"\",\"\",IF(MONTH(KR5+1)>MONTH(JX5),\"\",KR5+1))","v":"2019-10-22"},{"$f":"IF(KS5=\"\",\"\",IF(MONTH(KS5+1)>MONTH(JX5),\"\",KS5+1))","v":"2019-10-23"},{"$f":"IF(KT5=\"\",\"\",IF(MONTH(KT5+1)>MONTH(JX5),\"\",KT5+1))","v":"2019-10-24"},{"$f":"IF(KU5=\"\",\"\",IF(MONTH(KU5+1)>MONTH(JX5),\"\",KU5+1))","v":"2019-10-25"},{"$f":"IF(KV5=\"\",\"\",IF(MONTH(KV5+1)>MONTH(JX5),\"\",KV5+1))","v":"2019-10-26"},{"$f":"IF(KW5=\"\",\"\",IF(MONTH(KW5+1)>MONTH(JX5),\"\",KW5+1))","v":"2019-10-27"},{"$f":"IF(KX5=\"\",\"\",IF(MONTH(KX5+1)>MONTH(JX5),\"\",KX5+1))","v":"2019-10-28"},{"$f":"IF(KY5=\"\",\"\",IF(MONTH(KY5+1)>MONTH(JX5),\"\",KY5+1))","v":"2019-10-29"},{"$f":"IF(KZ5=\"\",\"\",IF(MONTH(KZ5+1)>MONTH(JX5),\"\",KZ5+1))","v":"2019-10-30"},{"$f":"IF(LA5=\"\",\"\",IF(MONTH(LA5+1)>MONTH(JX5),\"\",LA5+1))","v":"2019-10-31"},{"$f":"DATE(année,11,1)","v":"2019-11-01"},{"$f":"IF(LC5=\"\",\"\",IF(MONTH(LC5+1)>MONTH(LC5),\"\",LC5+1))","v":"2019-11-02"},{"$f":"IF(LD5=\"\",\"\",IF(MONTH(LD5+1)>MONTH(LC5),\"\",LD5+1))","v":"2019-11-03"},{"$f":"IF(LE5=\"\",\"\",IF(MONTH(LE5+1)>MONTH(LC5),\"\",LE5+1))","v":"2019-11-04"},{"$f":"IF(LF5=\"\",\"\",IF(MONTH(LF5+1)>MONTH(LC5),\"\",LF5+1))","v":"2019-11-05"},{"$f":"IF(LG5=\"\",\"\",IF(MONTH(LG5+1)>MONTH(LC5),\"\",LG5+1))","v":"2019-11-06"},{"$f":"IF(LH5=\"\",\"\",IF(MONTH(LH5+1)>MONTH(LC5),\"\",LH5+1))","v":"2019-11-07"},{"$f":"IF(LI5=\"\",\"\",IF(MONTH(LI5+1)>MONTH(LC5),\"\",LI5+1))","v":"2019-11-08"},{"$f":"IF(LJ5=\"\",\"\",IF(MONTH(LJ5+1)>MONTH(LC5),\"\",LJ5+1))","v":"2019-11-09"},{"$f":"IF(LK5=\"\",\"\",IF(MONTH(LK5+1)>MONTH(LC5),\"\",LK5+1))","v":"2019-11-10"},{"$f":"IF(LL5=\"\",\"\",IF(MONTH(LL5+1)>MONTH(LC5),\"\",LL5+1))","v":"2019-11-11"},{"$f":"IF(LM5=\"\",\"\",IF(MONTH(LM5+1)>MONTH(LC5),\"\",LM5+1))","v":"2019-11-12"},{"$f":"IF(LN5=\"\",\"\",IF(MONTH(LN5+1)>MONTH(LC5),\"\",LN5+1))","v":"2019-11-13"},{"$f":"IF(LO5=\"\",\"\",IF(MONTH(LO5+1)>MONTH(LC5),\"\",LO5+1))","v":"2019-11-14"},{"$f":"IF(LP5=\"\",\"\",IF(MONTH(LP5+1)>MONTH(LC5),\"\",LP5+1))","v":"2019-11-15"},{"$f":"IF(LQ5=\"\",\"\",IF(MONTH(LQ5+1)>MONTH(LC5),\"\",LQ5+1))","v":"2019-11-16"},{"$f":"IF(LR5=\"\",\"\",IF(MONTH(LR5+1)>MONTH(LC5),\"\",LR5+1))","v":"2019-11-17"},{"$f":"IF(LS5=\"\",\"\",IF(MONTH(LS5+1)>MONTH(LC5),\"\",LS5+1))","v":"2019-11-18"},{"$f":"IF(LT5=\"\",\"\",IF(MONTH(LT5+1)>MONTH(LC5),\"\",LT5+1))","v":"2019-11-19"},{"$f":"IF(LU5=\"\",\"\",IF(MONTH(LU5+1)>MONTH(LC5),\"\",LU5+1))","v":"2019-11-20"},{"$f":"IF(LV5=\"\",\"\",IF(MONTH(LV5+1)>MONTH(LC5),\"\",LV5+1))","v":"2019-11-21"},{"$f":"IF(LW5=\"\",\"\",IF(MONTH(LW5+1)>MONTH(LC5),\"\",LW5+1))","v":"2019-11-22"},{"$f":"IF(LX5=\"\",\"\",IF(MONTH(LX5+1)>MONTH(LC5),\"\",LX5+1))","v":"2019-11-23"},{"$f":"IF(LY5=\"\",\"\",IF(MONTH(LY5+1)>MONTH(LC5),\"\",LY5+1))","v":"2019-11-24"},{"$f":"IF(LZ5=\"\",\"\",IF(MONTH(LZ5+1)>MONTH(LC5),\"\",LZ5+1))","v":"2019-11-25"},{"$f":"IF(MA5=\"\",\"\",IF(MONTH(MA5+1)>MONTH(LC5),\"\",MA5+1))","v":"2019-11-26"},{"$f":"IF(MB5=\"\",\"\",IF(MONTH(MB5+1)>MONTH(LC5),\"\",MB5+1))","v":"2019-11-27"},{"$f":"IF(MC5=\"\",\"\",IF(MONTH(MC5+1)>MONTH(LC5),\"\",MC5+1))","v":"2019-11-28"},{"$f":"IF(MD5=\"\",\"\",IF(MONTH(MD5+1)>MONTH(LC5),\"\",MD5+1))","v":"2019-11-29"},{"$f":"IF(ME5=\"\",\"\",IF(MONTH(ME5+1)>MONTH(LC5),\"\",ME5+1))","v":"2019-11-30"},{"$f":"IF(MF5=\"\",\"\",IF(MONTH(MF5+1)>MONTH(LC5),\"\",MF5+1))","v":""},{"$f":"DATE(année,12,1)","v":"2019-12-01"},{"$f":"IF(MH5=\"\",\"\",IF(MONTH(MH5+1)>MONTH(MH5),\"\",MH5+1))","v":"2019-12-02"},{"$f":"IF(MI5=\"\",\"\",IF(MONTH(MI5+1)>MONTH(MH5),\"\",MI5+1))","v":"2019-12-03"},{"$f":"IF(MJ5=\"\",\"\",IF(MONTH(MJ5+1)>MONTH(MH5),\"\",MJ5+1))","v":"2019-12-04"},{"$f":"IF(MK5=\"\",\"\",IF(MONTH(MK5+1)>MONTH(MH5),\"\",MK5+1))","v":"2019-12-05"},{"$f":"IF(ML5=\"\",\"\",IF(MONTH(ML5+1)>MONTH(MH5),\"\",ML5+1))","v":"2019-12-06"},{"$f":"IF(MM5=\"\",\"\",IF(MONTH(MM5+1)>MONTH(MH5),\"\",MM5+1))","v":"2019-12-07"},{"$f":"IF(MN5=\"\",\"\",IF(MONTH(MN5+1)>MONTH(MH5),\"\",MN5+1))","v":"2019-12-08"},{"$f":"IF(MO5=\"\",\"\",IF(MONTH(MO5+1)>MONTH(MH5),\"\",MO5+1))","v":"2019-12-09"},{"$f":"IF(MP5=\"\",\"\",IF(MONTH(MP5+1)>MONTH(MH5),\"\",MP5+1))","v":"2019-12-10"},{"$f":"IF(MQ5=\"\",\"\",IF(MONTH(MQ5+1)>MONTH(MH5),\"\",MQ5+1))","v":"2019-12-11"},{"$f":"IF(MR5=\"\",\"\",IF(MONTH(MR5+1)>MONTH(MH5),\"\",MR5+1))","v":"2019-12-12"},{"$f":"IF(MS5=\"\",\"\",IF(MONTH(MS5+1)>MONTH(MH5),\"\",MS5+1))","v":"2019-12-13"},{"$f":"IF(MT5=\"\",\"\",IF(MONTH(MT5+1)>MONTH(MH5),\"\",MT5+1))","v":"2019-12-14"},{"$f":"IF(MU5=\"\",\"\",IF(MONTH(MU5+1)>MONTH(MH5),\"\",MU5+1))","v":"2019-12-15"},{"$f":"IF(MV5=\"\",\"\",IF(MONTH(MV5+1)>MONTH(MH5),\"\",MV5+1))","v":"2019-12-16"},{"$f":"IF(MW5=\"\",\"\",IF(MONTH(MW5+1)>MONTH(MH5),\"\",MW5+1))","v":"2019-12-17"},{"$f":"IF(MX5=\"\",\"\",IF(MONTH(MX5+1)>MONTH(MH5),\"\",MX5+1))","v":"2019-12-18"},{"$f":"IF(MY5=\"\",\"\",IF(MONTH(MY5+1)>MONTH(MH5),\"\",MY5+1))","v":"2019-12-19"},{"$f":"IF(MZ5=\"\",\"\",IF(MONTH(MZ5+1)>MONTH(MH5),\"\",MZ5+1))","v":"2019-12-20"},{"$f":"IF(NA5=\"\",\"\",IF(MONTH(NA5+1)>MONTH(MH5),\"\",NA5+1))","v":"2019-12-21"},{"$f":"IF(NB5=\"\",\"\",IF(MONTH(NB5+1)>MONTH(MH5),\"\",NB5+1))","v":"2019-12-22"},{"$f":"IF(NC5=\"\",\"\",IF(MONTH(NC5+1)>MONTH(MH5),\"\",NC5+1))","v":"2019-12-23"},{"$f":"IF(ND5=\"\",\"\",IF(MONTH(ND5+1)>MONTH(MH5),\"\",ND5+1))","v":"2019-12-24"},{"$f":"IF(NE5=\"\",\"\",IF(MONTH(NE5+1)>MONTH(MH5),\"\",NE5+1))","v":"2019-12-25"},{"$f":"IF(NF5=\"\",\"\",IF(MONTH(NF5+1)>MONTH(MH5),\"\",NF5+1))","v":"2019-12-26"},{"$f":"IF(NG5=\"\",\"\",IF(MONTH(NG5+1)>MONTH(MH5),\"\",NG5+1))","v":"2019-12-27"},{"$f":"IF(NH5=\"\",\"\",IF(MONTH(NH5+1)>MONTH(MH5),\"\",NH5+1))","v":"2019-12-28"},{"$f":"IF(NI5=\"\",\"\",IF(MONTH(NI5+1)>MONTH(MH5),\"\",NI5+1))","v":"2019-12-29"},{"$f":"IF(NJ5=\"\",\"\",IF(MONTH(NJ5+1)>MONTH(MH5),\"\",NJ5+1))","v":"2019-12-30"},{"$f":"IF(NK5=\"\",\"\",IF(MONTH(NK5+1)>MONTH(MH5),\"\",NK5+1))","v":"2019-12-31"}]
[null,"mois",null,null,0,null,null,null,null,null,null,null,null,null,null,null,null,null,null,null,null,null,null,null,null,null,null,null,null,null,null,null,null,null,null,null,null,null,null,null,null,null,null,null,null,null,null,null,null,null,null,null,null,null,null,null,null,null,null,null,null,null,null,null,null,null,null,null,null,null,null,null,null,null,null,null,null,null,null,null,null,null,null,null,null,null,null,null,null,null,null,null,null,null,null,null,null,null,null,null,null,null,null,null,null,null,null,null,null,null,null,null,null,null,null,null,null,null,null,null,null,null,null,null,null,null,null,null,null,null,null,null,null,null,null,null,null,null,null,null,null,null,null,null,null,null,null,null,null,null,null,null,null,null,null,null,null,null,null,null,null,null,null,null,null,null,null,null,null,null,null,null,null,null,null,null,null,null,null,null,null,null,null,null,null,null,null,null,null,null,null,null,null,null,null,null,null,null,null,null,null,null,null,null,null,null,null,null,null,null,null,null,null,null,null,null,null,null,null,null,null,null,null,null,null,null,null,null,null,null,null,null,null,null,null,null,null,null,null,null,null,null,null,null,null,null,null,null,null,null,null,null,null,null,null,null,null,null,null,null,null,null,null,null,null,null,null,null,null,null,null,null,null,null,null,null,null,null,null,null,null,null,null,null,null,null,null,null,null,null,null,null,null,null,null,null,null,null,null,null,null,null,null,null,null,null,null,null,null,null,null,null,null,null,null,null,null,null,null,null,null,null,null,null,null,null,null,null,null,null,null,null,null,null,null,null,null,null,null,null,null,null,null,null,null,null,null,null,null,null,null,null,null,null,null,null,null,null,null,null,null,null,null,null,null,null,null,null,null,null,null,null,null,null,null,null,{"$f":"COUNTIF(OFFSET($A6,,MATCH(DATE(année,$NM$1,1),$5:$5,0)-1,,DAY(DATE(année,$NM$1+1,0))),0)","v":1}]
[null,"janvier",null,null,null,null,0,null,null,null,null,null,null,null,null,null,null,null,null,null,null,null,null,null,null,null,null,null,null,null,null,null,null,null,null,null,null,null,null,null,null,null,null,null,null,null,null,null,null,null,null,null,null,null,null,null,null,null,null,null,null,null,null,null,null,null,null,null,null,null,null,null,null,null,null,null,null,null,null,null,null,null,null,null,null,null,null,null,null,null,null,null,null,null,null,null,null,null,null,null,null,null,null,null,null,null,null,null,null,null,null,null,null,null,null,null,null,null,null,null,null,null,null,null,null,null,null,null,null,null,null,null,null,null,null,null,null,null,null,null,null,null,null,null,null,null,null,null,null,null,null,null,null,null,null,null,null,null,null,null,null,null,null,null,null,null,null,null,null,null,null,null,null,null,null,null,null,null,null,null,null,null,null,null,null,null,null,null,null,null,null,null,null,null,null,null,null,null,null,null,null,null,null,null,null,null,null,null,null,null,null,null,null,null,null,null,null,null,null,null,null,null,null,null,null,null,null,null,null,null,null,null,null,null,null,null,null,null,null,null,null,null,null,null,null,null,null,null,null,null,null,null,null,null,null,null,null,null,null,null,null,null,null,null,null,null,null,null,null,null,null,null,null,null,null,null,null,null,null,null,null,null,null,null,null,null,null,null,null,null,null,null,null,null,null,null,null,null,null,null,null,null,null,null,null,null,null,null,null,null,null,null,null,null,null,null,null,null,null,null,null,null,null,null,null,null,null,null,null,null,null,null,null,null,null,null,null,null,null,null,null,null,null,null,null,null,null,null,null,null,null,null,null,null,null,null,null,null,null,null,null,null,null,null,null,null,null,null,null,null,null,null,null,null,null,null,{"$f":"COUNTIF(OFFSET($A7,,MATCH(DATE(année,$NM$1,1),$5:$5,0)-1,,DAY(DATE(année,$NM$1+1,0))),0)","v":1}]
[null,null,null,null,null,null,null,null,null,null,null,null,null,null,null,null,null,null,null,null,null,null,null,null,null,null,null,null,null,null,null,null,null,null,null,null,null,null,null,null,null,null,null,null,null,null,null,null,null,null,null,null,null,null,null,null,null,null,null,null,null,null,null,null,null,null,null,null,null,null,null,null,null,null,null,null,null,null,null,null,null,null,null,null,null,null,null,null,null,null,null,null,null,null,null,null,null,null,null,null,null,null,null,null,null,null,null,null,null,null,null,null,null,null,null,null,null,null,null,null,null,null,null,null,null,null,null,null,null,null,null,null,null,null,null,null,null,null,null,null,null,null,null,null,null,null,null,null,null,null,null,null,null,null,null,null,null,null,null,null,null,null,null,null,null,null,null,null,null,null,null,null,null,null,null,null,null,null,null,null,null,null,null,null,null,null,null,null,null,null,null,null,null,null,null,null,null,null,null,null,null,null,null,null,null,null,null,null,null,null,null,null,null,null,null,null,null,null,null,null,null,null,null,null,null,null,null,null,null,null,null,null,null,null,null,null,null,null,null,null,null,null,null,null,null,null,null,null,null,null,null,null,null,null,null,null,null,null,null,null,null,null,null,null,null,null,null,null,null,null,null,null,null,null,null,null,null,null,null,null,null,null,null,null,null,null,null,null,null,null,null,null,null,null,null,null,null,null,null,null,null,null,null,null,null,null,null,null,null,null,null,null,null,null,null,null,null,null,null,null,null,null,null,null,null,null,null,null,null,null,null,null,null,null,null,null,null,null,null,null,null,null,null,null,null,null,null,null,null,null,null,null,null,null,null,null,null,null,null,null,null,null,null,null,null,null,null,null,null,null,null,null,null,null,null,null,{"$f":"COUNTIF(OFFSET($A8,,MATCH(DATE(année,$NM$1,1),$5:$5,0)-1,,DAY(DATE(année,$NM$1+1,0))),0)","v":0}]
[null,"année",null,null,null,null,null,null,null,null,null,null,null,null,null,null,null,null,null,null,null,null,null,null,null,null,null,null,null,null,null,null,0,null,null,null,null,null,null,null,null,null,null,null,null,null,null,null,null,null,null,null,null,null,null,null,null,null,null,null,null,null,null,null,null,null,null,null,null,null,null,null,null,null,null,null,null,null,null,null,null,null,null,null,null,null,null,null,null,null,null,null,null,null,null,null,null,null,null,null,null,null,null,null,null,null,null,null,null,null,null,null,null,null,null,null,null,null,null,null,null,null,null,null,null,null,null,null,null,null,null,null,null,null,null,null,null,null,null,null,null,null,null,null,null,null,null,null,null,null,null,null,null,null,null,null,null,null,null,null,null,null,null,null,null,null,null,null,null,null,null,null,null,null,null,null,null,null,null,null,null,null,null,null,null,null,null,null,null,null,null,null,null,null,null,null,null,null,null,null,null,null,null,null,null,null,null,null,null,null,null,null,null,null,null,null,null,null,null,null,null,null,null,null,null,null,null,null,null,null,null,null,null,null,null,null,null,null,null,null,null,null,null,null,null,null,null,null,null,null,null,null,null,null,null,null,null,null,null,null,null,null,null,null,null,null,null,null,null,null,null,null,null,null,null,null,null,null,null,null,null,null,null,null,null,null,null,null,null,null,null,null,null,null,null,null,null,null,null,null,null,null,null,null,null,null,null,null,null,null,null,null,null,null,null,null,null,null,null,null,null,null,null,null,null,null,null,null,null,null,null,null,null,null,null,null,null,null,null,null,null,null,null,null,null,null,null,null,null,null,null,null,null,null,null,null,null,null,null,null,null,null,null,null,null,null,null,null,null,null,null,null,null,null,null,null,{"$f":"COUNTIF(OFFSET($A9,,MATCH(DATE(année,$NM$1,1),$5:$5,0)-1,,DAY(DATE(année,$NM$1+1,0))),0)","v":1}]
[null,2019,null,null,null,null,null,null,null,null,0,null,null,null,null,null,null,null,null,null,null,null,null,null,null,null,null,null,null,null,null,null,null,null,null,null,null,null,null,null,null,null,null,null,null,null,null,null,null,null,null,null,null,null,null,null,null,null,null,null,null,null,null,null,null,null,null,null,null,null,null,null,null,null,null,null,null,null,null,null,null,null,null,null,null,null,null,null,null,null,null,null,null,null,null,null,null,null,null,null,null,null,null,null,null,null,null,null,null,null,null,null,null,null,null,null,null,null,null,null,null,null,null,null,null,null,null,null,null,null,null,null,null,null,null,null,null,null,null,null,null,null,null,null,null,null,null,null,null,null,null,null,null,null,null,null,null,null,null,null,null,null,null,null,null,null,null,null,null,null,null,null,null,null,null,null,null,null,null,null,null,null,null,null,null,null,null,null,null,null,null,null,null,null,null,null,null,null,null,null,null,null,null,null,null,null,null,null,null,null,null,null,null,null,null,null,null,null,null,null,null,null,null,null,null,null,null,null,null,null,null,null,null,null,null,null,null,null,null,null,null,null,null,null,null,null,null,null,null,null,null,null,null,null,null,null,null,null,null,null,null,null,null,null,null,null,null,null,null,null,null,null,null,null,null,null,null,null,null,null,null,null,null,null,null,null,null,null,null,null,null,null,null,null,null,null,null,null,null,null,null,null,null,null,null,null,null,null,null,null,null,null,null,null,null,null,null,null,null,null,null,null,null,null,null,null,null,null,null,null,null,null,null,null,null,null,null,null,null,null,null,null,null,null,null,null,null,null,null,null,null,null,null,null,null,null,null,null,null,null,null,null,null,null,null,null,null,null,null,null,null,null,null,null,null,null,{"$f":"COUNTIF(OFFSET($A10,,MATCH(DATE(année,$NM$1,1),$5:$5,0)-1,,DAY(DATE(année,$NM$1+1,0))),0)","v":1}]
[null,null,null,null,null,null,null,null,null,null,null,null,null,null,null,null,null,null,null,null,null,null,null,null,null,null,null,null,null,null,null,null,null,null,null,null,null,null,null,null,null,null,null,null,null,null,null,null,null,null,null,null,null,null,null,null,null,null,null,null,null,null,null,null,null,null,null,null,null,null,null,null,null,null,null,null,null,null,null,null,null,null,null,null,null,null,null,null,null,null,null,null,null,null,null,null,null,null,null,null,null,null,null,null,null,null,null,null,null,null,null,null,null,null,null,null,null,null,null,null,null,null,null,null,null,null,null,null,null,null,null,null,null,null,null,null,null,null,null,null,null,null,null,null,null,null,null,null,null,null,null,null,null,null,null,null,null,null,null,null,null,null,null,null,null,null,null,null,null,null,null,null,null,null,null,null,null,null,null,null,null,null,null,null,null,null,null,null,null,null,null,null,null,null,null,null,null,null,null,null,null,null,null,null,null,null,null,null,null,null,null,null,null,null,null,null,null,null,null,null,null,null,null,null,null,null,null,null,null,null,null,null,null,null,null,null,null,null,null,null,null,null,null,null,null,null,null,null,null,null,null,null,null,null,null,null,null,null,null,null,null,null,null,null,null,null,null,null,null,null,null,null,null,null,null,null,null,null,null,null,null,null,null,null,null,null,null,null,null,null,null,null,null,null,null,null,null,null,null,null,null,null,null,null,null,null,null,null,null,null,null,null,null,null,null,null,null,null,null,null,null,null,null,null,null,null,null,null,null,null,null,null,null,null,null,null,null,null,null,null,null,null,null,null,null,null,null,null,null,null,null,null,null,null,null,null,null,null,null,null,null,null,null,null,null,null,null,null,null,null,null,null,null,null,null,null,{"$f":"COUNTIF(OFFSET($A11,,MATCH(DATE(année,$NM$1,1),$5:$5,0)-1,,DAY(DATE(année,$NM$1+1,0))),0)","v":0}]
[null,null,null,null,null,null,null,null,null,null,null,null,null,null,null,null,null,null,null,null,null,null,null,null,null,null,null,null,null,null,null,null,null,null,null,null,null,null,null,null,null,null,null,null,null,null,null,null,null,null,null,null,null,null,null,null,null,null,null,null,null,null,null,null,null,null,null,null,null,null,null,null,null,null,null,null,null,null,null,null,null,null,null,null,null,null,null,null,null,null,null,null,null,null,null,null,null,null,null,null,null,null,null,null,null,null,null,null,null,null,null,null,null,null,null,null,null,null,null,null,null,null,null,null,null,null,null,null,null,null,null,null,null,null,null,null,null,null,null,null,null,null,null,null,null,null,null,null,null,null,null,null,null,null,null,null,null,null,null,null,null,null,null,null,null,null,null,null,null,null,null,null,null,null,null,null,null,null,null,null,null,null,null,null,null,null,null,null,null,null,null,null,null,null,null,null,null,null,null,null,null,null,null,null,null,null,null,null,null,null,null,null,null,null,null,null,null,null,null,null,null,null,null,null,null,null,null,null,null,null,null,null,null,null,null,null,null,null,null,null,null,null,null,null,null,null,null,null,null,null,null,null,null,null,null,null,null,null,null,null,null,null,null,null,null,null,null,null,null,null,null,null,null,null,null,null,null,null,null,null,null,null,null,null,null,null,null,null,null,null,null,null,null,null,null,null,null,null,null,null,null,null,null,null,null,null,null,null,null,null,null,null,null,null,null,null,null,null,null,null,null,null,null,null,null,null,null,null,null,null,null,null,null,null,null,null,null,null,null,null,null,null,null,null,null,null,null,null,null,null,null,null,null,null,null,null,null,null,null,null,null,null,null,null,null,null,null,null,null,null,null,null,null,null,null,null,{"$f":"COUNTIF(OFFSET($A12,,MATCH(DATE(année,$NM$1,1),$5:$5,0)-1,,DAY(DATE(année,$NM$1+1,0))),0)","v":0}]
[null,null,null,null,null,null,null,null,null,null,null,null,null,null,null,null,null,null,null,null,null,null,null,null,null,null,0,null,null,null,null,null,null,null,null,null,null,null,null,null,null,null,null,null,null,null,null,null,null,null,null,null,null,null,null,null,null,null,null,null,null,null,null,null,null,null,null,null,null,null,null,null,null,null,null,null,null,null,null,null,null,null,null,null,null,null,null,null,null,null,null,null,null,null,null,null,null,null,null,null,null,null,null,null,null,null,null,null,null,null,null,null,null,null,null,null,null,null,null,null,null,null,null,null,null,null,null,null,null,null,null,null,null,null,null,null,null,null,null,null,null,null,null,null,null,null,null,null,null,null,null,null,null,null,null,null,null,null,null,null,null,null,null,null,null,null,null,null,null,null,null,null,null,null,null,null,null,null,null,null,null,null,null,null,null,null,null,null,null,null,null,null,null,null,null,null,null,null,null,null,null,null,null,null,null,null,null,null,null,null,null,null,null,null,null,null,null,null,null,null,null,null,null,null,null,null,null,null,null,null,null,null,null,null,null,null,null,null,null,null,null,null,null,null,null,null,null,null,null,null,null,null,null,null,null,null,null,null,null,null,null,null,null,null,null,null,null,null,null,null,null,null,null,null,null,null,null,null,null,null,null,null,null,null,null,null,null,null,null,null,null,null,null,null,null,null,null,null,null,null,null,null,null,null,null,null,null,null,null,null,null,null,null,null,null,null,null,null,null,null,null,null,null,null,null,null,null,null,null,null,null,null,null,null,null,null,null,null,null,null,null,null,null,null,null,null,null,null,null,null,null,null,null,null,null,null,null,null,null,null,null,null,null,null,null,null,null,null,null,null,null,null,null,null,null,null,{"$f":"COUNTIF(OFFSET($A13,,MATCH(DATE(année,$NM$1,1),$5:$5,0)-1,,DAY(DATE(année,$NM$1+1,0))),0)","v":1}]
[null,null,null,null,null,null,null,null,null,null,null,null,0,null,null,null,null,null,null,null,null,null,null,null,null,null,null,null,null,null,null,null,null,null,null,null,null,null,null,null,null,null,null,null,null,null,null,null,null,null,null,null,null,null,null,null,null,null,null,null,null,null,null,null,null,null,null,null,null,null,null,null,null,null,null,null,null,null,null,null,null,null,null,null,null,null,null,null,null,null,null,null,null,null,null,null,null,null,null,null,null,null,null,null,null,null,null,null,null,null,null,null,null,null,null,null,null,null,null,null,null,null,null,null,null,null,null,null,null,null,null,null,null,null,null,null,null,null,null,null,null,null,null,null,null,null,null,null,null,null,null,null,null,null,null,null,null,null,null,null,null,null,null,null,null,null,null,null,null,null,null,null,null,null,null,null,null,null,null,null,null,null,null,null,null,null,null,null,null,null,null,null,null,null,null,null,null,null,null,null,null,null,null,null,null,null,null,null,null,null,null,null,null,null,null,null,null,null,null,null,null,null,null,null,null,null,null,null,null,null,null,null,null,null,null,null,null,null,null,null,null,null,null,null,null,null,null,null,null,null,null,null,null,null,null,null,null,null,null,null,null,null,null,null,null,null,null,null,null,null,null,null,null,null,null,null,null,null,null,null,null,null,null,null,null,null,null,null,null,null,null,null,null,null,null,null,null,null,null,null,null,null,null,null,null,null,null,null,null,null,null,null,null,null,null,null,null,null,null,null,null,null,null,null,null,null,null,null,null,null,null,null,null,null,null,null,null,null,null,null,null,null,null,null,null,null,null,null,null,null,null,null,null,null,null,null,null,null,null,null,null,null,null,null,null,null,null,null,null,null,null,null,null,null,null,null,{"$f":"COUNTIF(OFFSET($A14,,MATCH(DATE(année,$NM$1,1),$5:$5,0)-1,,DAY(DATE(année,$NM$1+1,0))),0)","v":1}]
[null,null,null,null,null,null,null,null,null,null,null,null,null,null,null,null,null,null,null,null,null,null,null,null,null,null,null,null,null,null,null,null,null,0,null,null,null,null,null,null,null,null,null,null,null,null,null,null,null,null,null,null,null,null,null,null,null,null,null,null,null,null,null,null,null,null,null,null,null,null,null,null,null,null,null,null,null,null,null,null,null,null,null,null,null,null,null,null,null,null,null,null,null,null,null,null,null,null,null,null,null,null,null,null,null,null,null,null,null,null,null,null,null,null,null,null,null,null,null,null,null,null,null,null,null,null,null,null,null,null,null,null,null,null,null,null,null,null,null,null,null,null,null,null,null,null,null,null,null,null,null,null,null,null,null,null,null,null,null,null,null,null,null,null,null,null,null,null,null,null,null,null,null,null,null,null,null,null,null,null,null,null,null,null,null,null,null,null,null,null,null,null,null,null,null,null,null,null,null,null,null,null,null,null,null,null,null,null,null,null,null,null,null,null,null,null,null,null,null,null,null,null,null,null,null,null,null,null,null,null,null,null,null,null,null,null,null,null,null,null,null,null,null,null,null,null,null,null,null,null,null,null,null,null,null,null,null,null,null,null,null,null,null,null,null,null,null,null,null,null,null,null,null,null,null,null,null,null,null,null,null,null,null,null,null,null,null,null,null,null,null,null,null,null,null,null,null,null,null,null,null,null,null,null,null,null,null,null,null,null,null,null,null,null,null,null,null,null,null,null,null,null,null,null,null,null,null,null,null,null,null,null,null,null,null,null,null,null,null,null,null,null,null,null,null,null,null,null,null,null,null,null,null,null,null,null,null,null,null,null,null,null,null,null,null,null,null,null,null,null,null,null,null,null,null,null,{"$f":"COUNTIF(OFFSET($A15,,MATCH(DATE(année,$NM$1,1),$5:$5,0)-1,,DAY(DATE(année,$NM$1+1,0))),0)","v":1}]
[null,null,null,null,null,null,null,null,null,null,null,null,null,null,null,null,null,null,null,null,null,null,null,null,null,null,null,null,null,null,null,null,null,null,null,null,null,null,null,null,null,null,null,null,null,null,null,null,null,null,null,null,null,null,null,null,null,null,null,null,null,null,null,null,null,null,null,null,null,null,null,null,null,null,null,null,null,null,null,null,null,null,null,null,null,null,null,null,null,null,null,null,null,null,null,null,null,null,null,null,null,null,null,null,null,null,null,null,null,null,null,null,null,null,null,null,null,null,null,null,null,null,null,null,null,null,null,null,null,null,null,null,null,null,null,null,null,null,null,null,null,null,null,null,null,null,null,null,null,null,null,null,null,null,null,null,null,null,null,null,null,null,null,null,null,null,null,null,null,null,null,null,null,null,null,null,null,null,null,null,null,null,null,null,null,null,null,null,null,null,null,null,null,null,null,null,null,null,null,null,null,null,null,null,null,null,null,null,null,null,null,null,null,null,null,null,null,null,null,null,null,null,null,null,null,null,null,null,null,null,null,null,null,null,null,null,null,null,null,null,null,null,null,null,null,null,null,null,null,null,null,null,null,null,null,null,null,null,null,null,null,null,null,null,null,null,null,null,null,null,null,null,null,null,null,null,null,null,null,null,null,null,null,null,null,null,null,null,null,null,null,null,null,null,null,null,null,null,null,null,null,null,null,null,null,null,null,null,null,null,null,null,null,null,null,null,null,null,null,null,null,null,null,null,null,null,null,null,null,null,null,null,null,null,null,null,null,null,null,null,null,null,null,null,null,null,null,null,null,null,null,null,null,null,null,null,null,null,null,null,null,null,null,null,null,null,null,null,null,null,null,null,null,null,null,null,{"$f":"COUNTIF(OFFSET($A16,,MATCH(DATE(année,$NM$1,1),$5:$5,0)-1,,DAY(DATE(année,$NM$1+1,0))),0)","v":0}]
[null,null,null,null,null,null,null,null,null,null,null,null,null,null,null,null,null,null,null,null,null,null,null,null,null,null,null,null,null,null,null,null,null,null,null,null,null,null,null,null,null,null,null,null,null,null,null,null,null,null,null,null,null,null,null,null,null,null,null,null,null,null,null,null,null,null,null,null,null,null,null,null,null,null,null,null,null,null,null,null,null,null,null,null,null,null,null,null,null,null,null,null,null,null,null,null,null,null,null,null,null,null,null,null,null,null,null,null,null,null,null,null,null,null,null,null,null,null,null,null,null,null,null,null,null,null,null,null,null,null,null,null,null,null,null,null,null,null,null,null,null,null,null,null,null,null,null,null,null,null,null,null,null,null,null,null,null,null,null,null,null,null,null,null,null,null,null,null,null,null,null,null,null,null,null,null,null,null,null,null,null,null,null,null,null,null,null,null,null,null,null,null,null,null,null,null,null,null,null,null,null,null,null,null,null,null,null,null,null,null,null,null,null,null,null,null,null,null,null,null,null,null,null,null,null,null,null,null,null,null,null,null,null,null,null,null,null,null,null,null,null,null,null,null,null,null,null,null,null,null,null,null,null,null,null,null,null,null,null,null,null,null,null,null,null,null,null,null,null,null,null,null,null,null,null,null,null,null,null,null,null,null,null,null,null,null,null,null,null,null,null,null,null,null,null,null,null,null,null,null,null,null,null,null,null,null,null,null,null,null,null,null,null,null,null,null,null,null,null,null,null,null,null,null,null,null,null,null,null,null,null,null,null,null,null,null,null,null,null,null,null,null,null,null,null,null,null,null,null,null,null,null,null,null,null,null,null,null,null,null,null,null,null,null,null,null,null,null,null,null,null,null,null,null,null,null,{"$f":"COUNTIF(OFFSET($A17,,MATCH(DATE(année,$NM$1,1),$5:$5,0)-1,,DAY(DATE(année,$NM$1+1,0))),0)","v":0}]
[null,null,null,null,null,null,null,null,null,null,null,null,0,null,null,null,null,null,null,null,null,null,null,null,null,null,null,null,null,null,null,null,null,null,null,null,null,null,null,null,null,null,null,null,null,null,null,null,null,null,null,null,null,null,null,null,null,null,null,null,null,null,null,null,null,null,null,null,null,null,null,null,null,null,null,null,null,null,null,null,null,null,null,null,null,null,null,null,null,null,null,null,null,null,null,null,null,null,null,null,null,null,null,null,null,null,null,null,null,null,null,null,null,null,null,null,null,null,null,null,null,null,null,null,null,null,null,null,null,null,null,null,null,null,null,null,null,null,null,null,null,null,null,null,null,null,null,null,null,null,null,null,null,null,null,null,null,null,null,null,null,null,null,null,null,null,null,null,null,null,null,null,null,null,null,null,null,null,null,null,null,null,null,null,null,null,null,null,null,null,null,null,null,null,null,null,null,null,null,null,null,null,null,null,null,null,null,null,null,null,null,null,null,null,null,null,null,null,null,null,null,null,null,null,null,null,null,null,null,null,null,null,null,null,null,null,null,null,null,null,null,null,null,null,null,null,null,null,null,null,null,null,null,null,null,null,null,null,null,null,null,null,null,null,null,null,null,null,null,null,null,null,null,null,null,null,null,null,null,null,null,null,null,null,null,null,null,null,null,null,null,null,null,null,null,null,null,null,null,null,null,null,null,null,null,null,null,null,null,null,null,null,null,null,null,null,null,null,null,null,null,null,null,null,null,null,null,null,null,null,null,null,null,null,null,null,null,null,null,null,null,null,null,null,null,null,null,null,null,null,null,null,null,null,null,null,null,null,null,null,null,null,null,null,null,null,null,null,null,null,null,null,null,null,null,null,{"$f":"COUNTIF(OFFSET($A18,,MATCH(DATE(année,$NM$1,1),$5:$5,0)-1,,DAY(DATE(année,$NM$1+1,0))),0)","v":1}]
[null,null,null,null,null,0,null,null,null,null,null,null,null,null,null,null,null,null,null,0,null,null,null,null,null,null,0,null,null,null,null,null,null,null,null,null,null,null,null,null,null,null,null,null,null,null,null,null,null,null,null,null,null,null,null,null,null,null,null,null,null,null,null,null,null,null,null,null,null,null,null,null,null,null,null,null,null,null,null,null,null,null,null,null,null,null,null,null,null,null,null,null,null,null,null,null,null,null,null,null,null,null,null,null,null,null,null,null,null,null,null,null,null,null,null,null,null,null,null,null,null,null,null,null,null,null,null,null,null,null,null,null,null,null,null,null,null,null,null,null,null,null,null,null,null,null,null,null,null,null,null,null,null,null,null,null,null,null,null,null,null,null,null,null,null,null,null,null,null,null,null,null,null,null,null,null,null,null,null,null,null,null,null,null,null,null,null,null,null,null,null,null,null,null,null,null,null,null,null,null,null,null,null,null,null,null,null,null,null,null,null,null,null,null,null,null,null,null,null,null,null,null,null,null,null,null,null,null,null,null,null,null,null,null,null,null,null,null,null,null,null,null,null,null,null,null,null,null,null,null,null,null,null,null,null,null,null,null,null,null,null,null,null,null,null,null,null,null,null,null,null,null,null,null,null,null,null,null,null,null,null,null,null,null,null,null,null,null,null,null,null,null,null,null,null,null,null,null,null,null,null,null,null,null,null,null,null,null,null,null,null,null,null,null,null,null,null,null,null,null,null,null,null,null,null,null,null,null,null,null,null,null,null,null,null,null,null,null,null,null,null,null,null,null,null,null,null,null,null,null,null,null,null,null,null,null,null,null,null,null,null,null,null,null,null,null,null,null,null,null,null,null,null,null,null,null,{"$f":"COUNTIF(OFFSET($A19,,MATCH(DATE(année,$NM$1,1),$5:$5,0)-1,,DAY(DATE(année,$NM$1+1,0))),0)","v":3}]
[null,null,null,null,null,null,null,null,null,null,null,null,null,null,null,null,null,null,null,null,null,null,null,null,null,null,null,null,null,null,null,null,null,null,null,null,null,null,null,null,null,null,null,null,null,null,null,null,null,null,null,null,null,null,null,null,null,null,null,null,null,null,null,null,null,null,null,null,null,null,null,null,null,null,null,null,null,null,null,null,null,null,null,null,null,null,null,null,null,null,null,null,null,null,null,null,null,null,null,null,null,null,null,null,null,null,null,null,null,null,null,null,null,null,null,null,null,null,null,null,null,null,null,null,null,null,null,null,null,null,null,null,null,null,null,null,null,null,null,null,null,null,null,null,null,null,null,null,null,null,null,null,null,null,null,null,null,null,null,null,null,null,null,null,null,null,null,null,null,null,null,null,null,null,null,null,null,null,null,null,null,null,null,null,null,null,null,null,null,null,null,null,null,null,null,null,null,null,null,null,null,null,null,null,null,null,null,null,null,null,null,null,null,null,null,null,null,null,null,null,null,null,null,null,null,null,null,null,null,null,null,null,null,null,null,null,null,null,null,null,null,null,null,null,null,null,null,null,null,null,null,null,null,null,null,null,null,null,null,null,null,null,null,null,null,null,null,null,null,null,null,null,null,null,null,null,null,null,null,null,null,null,null,null,null,null,null,null,null,null,null,null,null,null,null,null,null,null,null,null,null,null,null,null,null,null,null,null,null,null,null,null,null,null,null,null,null,null,null,null,null,null,null,null,null,null,null,null,null,null,null,null,null,null,null,null,null,null,null,null,null,null,null,null,null,null,null,null,null,null,null,null,null,null,null,null,null,null,null,null,null,null,null,null,null,null,null,null,null,null,null,null,null,null,null,null,{"$f":"COUNTIF(OFFSET($A20,,MATCH(DATE(année,$NM$1,1),$5:$5,0)-1,,DAY(DATE(année,$NM$1+1,0))),0)","v":0}]
[null,null,null,null,null,null,null,null,null,null,null,null,null,null,null,null,null,null,null,null,null,null,null,null,null,null,null,null,null,null,null,null,null,null,null,null,null,null,null,null,null,null,null,null,null,null,null,null,null,null,null,null,null,null,null,null,null,null,null,null,null,null,null,null,null,null,null,null,null,null,null,null,null,null,null,null,null,null,null,null,null,null,null,null,null,null,null,null,null,null,null,null,null,null,null,null,null,null,null,null,null,null,null,null,null,null,null,null,null,null,null,null,null,null,null,null,null,null,null,null,null,null,null,null,null,null,null,null,null,null,null,null,null,null,null,null,null,null,null,null,null,null,null,null,null,null,null,null,null,null,null,null,null,null,null,null,null,null,null,null,null,null,null,null,null,null,null,null,null,null,null,null,null,null,null,null,null,null,null,null,null,null,null,null,null,null,null,null,null,null,null,null,null,null,null,null,null,null,null,null,null,null,null,null,null,null,null,null,null,null,null,null,null,null,null,null,null,null,null,null,null,null,null,null,null,null,null,null,null,null,null,null,null,null,null,null,null,null,null,null,null,null,null,null,null,null,null,null,null,null,null,null,null,null,null,null,null,null,null,null,null,null,null,null,null,null,null,null,null,null,null,null,null,null,null,null,null,null,null,null,null,null,null,null,null,null,null,null,null,null,null,null,null,null,null,null,null,null,null,null,null,null,null,null,null,null,null,null,null,null,null,null,null,null,null,null,null,null,null,null,null,null,null,null,null,null,null,null,null,null,null,null,null,null,null,null,null,null,null,null,null,null,null,null,null,null,null,null,null,null,null,null,null,null,null,null,null,null,null,null,null,null,null,null,null,null,null,null,null,null,null,null,null,null,null,null,{"$f":"COUNTIF(OFFSET($A21,,MATCH(DATE(année,$NM$1,1),$5:$5,0)-1,,DAY(DATE(année,$NM$1+1,0))),0)","v":0}]
[null,null,null,null,null,null,null,null,null,null,null,null,null,null,null,null,null,null,null,null,null,null,null,null,null,null,null,null,null,null,null,null,null,null,null,null,null,null,null,null,null,null,null,null,null,null,null,null,null,null,null,null,null,null,null,null,null,null,null,null,null,null,null,null,null,null,null,null,null,null,null,null,null,null,null,null,null,null,null,null,null,null,null,null,null,null,null,null,null,null,null,null,null,null,null,null,null,null,null,null,null,null,null,null,null,null,null,null,null,null,null,null,null,null,null,null,null,null,null,null,null,null,null,null,null,null,null,null,null,null,null,null,null,null,null,null,null,null,null,null,null,null,null,null,null,null,null,null,null,null,null,null,null,null,null,null,null,null,null,null,null,null,null,null,null,null,null,null,null,null,null,null,null,null,null,null,null,null,null,null,null,null,null,null,null,null,null,null,null,null,null,null,null,null,null,null,null,null,null,null,null,null,null,null,null,null,null,null,null,null,null,null,null,null,null,null,null,null,null,null,null,null,null,null,null,null,null,null,null,null,null,null,null,null,null,null,null,null,null,null,null,null,null,null,null,null,null,null,null,null,null,null,null,null,null,null,null,null,null,null,null,null,null,null,null,null,null,null,null,null,null,null,null,null,null,null,null,null,null,null,null,null,null,null,null,null,null,null,null,null,null,null,null,null,null,null,null,null,null,null,null,null,null,null,null,null,null,null,null,null,null,null,null,null,null,null,null,null,null,null,null,null,null,null,null,null,null,null,null,null,null,null,null,null,null,null,null,null,null,null,null,null,null,null,null,null,null,null,null,null,null,null,null,null,null,null,null,null,null,null,null,null,null,null,null,null,null,null,null,null,null,null,null,null,null,null,{"$f":"COUNTIF(OFFSET($A22,,MATCH(DATE(année,$NM$1,1),$5:$5,0)-1,,DAY(DATE(année,$NM$1+1,0))),0)","v":0}]
[null,null,null,null,null,null,null,null,null,null,null,null,null,null,null,null,null,null,null,null,null,null,null,null,null,null,null,null,null,null,null,null,null,null,null,null,null,null,null,null,null,null,null,null,null,null,null,null,null,null,null,null,null,null,null,null,null,null,null,null,null,null,null,null,null,null,null,null,null,null,null,null,null,null,null,null,null,null,null,null,null,null,null,null,null,null,null,null,null,null,null,null,null,null,null,null,null,null,null,null,null,null,null,null,null,null,null,null,null,null,null,null,null,null,null,null,null,null,null,null,null,null,null,null,null,null,null,null,null,null,null,null,null,null,null,null,null,null,null,null,null,null,null,null,null,null,null,null,null,null,null,null,null,null,null,null,null,null,null,null,null,null,null,null,null,null,null,null,null,null,null,null,null,null,null,null,null,null,null,null,null,null,null,null,null,null,null,null,null,null,null,null,null,null,null,null,null,null,null,null,null,null,null,null,null,null,null,null,null,null,null,null,null,null,null,null,null,null,null,null,null,null,null,null,null,null,null,null,null,null,null,null,null,null,null,null,null,null,null,null,null,null,null,null,null,null,null,null,null,null,null,null,null,null,null,null,null,null,null,null,null,null,null,null,null,null,null,null,null,null,null,null,null,null,null,null,null,null,null,null,null,null,null,null,null,null,null,null,null,null,null,null,null,null,null,null,null,null,null,null,null,null,null,null,null,null,null,null,null,null,null,null,null,null,null,null,null,null,null,null,null,null,null,null,null,null,null,null,null,null,null,null,null,null,null,null,null,null,null,null,null,null,null,null,null,null,null,null,null,null,null,null,null,null,null,null,null,null,null,null,null,null,null,null,null,null,null,null,null,null,null,null,null,null,null,null,{"$f":"COUNTIF(OFFSET($A23,,MATCH(DATE(année,$NM$1,1),$5:$5,0)-1,,DAY(DATE(année,$NM$1+1,0))),0)","v":0}]
[null,null,null,null,null,null,null,null,null,null,null,null,null,0,null,null,null,null,null,null,null,null,null,null,null,0,null,null,null,null,null,null,null,null,null,null,null,null,null,null,null,null,null,null,null,null,null,null,null,null,null,null,null,null,null,null,null,null,null,null,null,null,null,null,null,null,null,null,null,null,null,null,null,null,null,null,null,null,null,null,null,null,null,null,null,null,null,null,null,null,null,null,null,null,null,null,null,null,null,null,null,null,null,null,null,null,null,null,null,null,null,null,null,null,null,null,null,null,null,null,null,null,null,null,null,null,null,null,null,null,null,null,null,null,null,null,null,null,null,null,null,null,null,null,null,null,null,null,null,null,null,null,null,null,null,null,null,null,null,null,null,null,null,null,null,null,null,null,null,null,null,null,null,null,null,null,null,null,null,null,null,null,null,null,null,null,null,null,null,null,null,null,null,null,null,null,null,null,null,null,null,null,null,null,null,null,null,null,null,null,null,null,null,null,null,null,null,null,null,null,null,null,null,null,null,null,null,null,null,null,null,null,null,null,null,null,null,null,null,null,null,null,null,null,null,null,null,null,null,null,null,null,null,null,null,null,null,null,null,null,null,null,null,null,null,null,null,null,null,null,null,null,null,null,null,null,null,null,null,null,null,null,null,null,null,null,null,null,null,null,null,null,null,null,null,null,null,null,null,null,null,null,null,null,null,null,null,null,null,null,null,null,null,null,null,null,null,null,null,null,null,null,null,null,null,null,null,null,null,null,null,null,null,null,null,null,null,null,null,null,null,null,null,null,null,null,null,null,null,null,null,null,null,null,null,null,null,null,null,null,null,null,null,null,null,null,null,null,null,null,null,null,null,null,null,null,{"$f":"COUNTIF(OFFSET($A24,,MATCH(DATE(année,$NM$1,1),$5:$5,0)-1,,DAY(DATE(année,$NM$1+1,0))),0)","v":2}]
[null,null,null,null,null,null,null,null,null,null,null,null,null,null,null,null,null,null,null,null,null,null,null,null,null,null,null,null,null,null,null,null,null,null,null,null,null,null,null,null,null,null,null,null,null,null,null,null,null,null,null,null,null,null,null,null,null,null,null,null,null,null,null,null,null,null,null,null,null,null,null,null,null,null,null,null,null,null,null,null,null,null,null,null,null,null,null,null,null,null,null,null,null,null,null,null,null,null,null,null,null,null,null,null,null,null,null,null,null,null,null,null,null,null,null,null,null,null,null,null,null,null,null,null,null,null,null,null,null,null,null,null,null,null,null,null,null,null,null,null,null,null,null,null,null,null,null,null,null,null,null,null,null,null,null,null,null,null,null,null,null,null,null,null,null,null,null,null,null,null,null,null,null,null,null,null,null,null,null,null,null,null,null,null,null,null,null,null,null,null,null,null,null,null,null,null,null,null,null,null,null,null,null,null,null,null,null,null,null,null,null,null,null,null,null,null,null,null,null,null,null,null,null,null,null,null,null,null,null,null,null,null,null,null,null,null,null,null,null,null,null,null,null,null,null,null,null,null,null,null,null,null,null,null,null,null,null,null,null,null,null,null,null,null,null,null,null,null,null,null,null,null,null,null,null,null,null,null,null,null,null,null,null,null,null,null,null,null,null,null,null,null,null,null,null,null,null,null,null,null,null,null,null,null,null,null,null,null,null,null,null,null,null,null,null,null,null,null,null,null,null,null,null,null,null,null,null,null,null,null,null,null,null,null,null,null,null,null,null,null,null,null,null,null,null,null,null,null,null,null,null,null,null,null,null,null,null,null,null,null,null,null,null,null,null,null,null,null,null,null,null,null,null,null,null,null,{"$f":"COUNTIF(OFFSET($A25,,MATCH(DATE(année,$NM$1,1),$5:$5,0)-1,,DAY(DATE(année,$NM$1+1,0))),0)","v":0}]
[null,null,null,null,null,null,null,null,null,null,null,null,null,null,null,null,null,null,null,null,null,null,null,null,null,null,null,null,null,null,null,null,null,null,null,null,null,null,null,null,null,null,null,null,null,null,null,null,null,null,null,null,null,null,null,null,null,null,null,null,null,null,null,null,null,null,null,null,null,null,null,null,null,null,null,null,null,null,null,null,null,null,null,null,null,null,null,null,null,null,null,null,null,null,null,null,null,null,null,null,null,null,null,null,null,null,null,null,null,null,null,null,null,null,null,null,null,null,null,null,null,null,null,null,null,null,null,null,null,null,null,null,null,null,null,null,null,null,null,null,null,null,null,null,null,null,null,null,null,null,null,null,null,null,null,null,null,null,null,null,null,null,null,null,null,null,null,null,null,null,null,null,null,null,null,null,null,null,null,null,null,null,null,null,null,null,null,null,null,null,null,null,null,null,null,null,null,null,null,null,null,null,null,null,null,null,null,null,null,null,null,null,null,null,null,null,null,null,null,null,null,null,null,null,null,null,null,null,null,null,null,null,null,null,null,null,null,null,null,null,null,null,null,null,null,null,null,null,null,null,null,null,null,null,null,null,null,null,null,null,null,null,null,null,null,null,null,null,null,null,null,null,null,null,null,null,null,null,null,null,null,null,null,null,null,null,null,null,null,null,null,null,null,null,null,null,null,null,null,null,null,null,null,null,null,null,null,null,null,null,null,null,null,null,null,null,null,null,null,null,null,null,null,null,null,null,null,null,null,null,null,null,null,null,null,null,null,null,null,null,null,null,null,null,null,null,null,null,null,null,null,null,null,null,null,null,null,null,null,null,null,null,null,null,null,null,null,null,null,null,null,null,null,null,null,null,{"$f":"COUNTIF(OFFSET($A26,,MATCH(DATE(année,$NM$1,1),$5:$5,0)-1,,DAY(DATE(année,$NM$1+1,0))),0)","v":0}]
[null,null,null,null,null,null,null,null,null,null,null,null,null,null,null,null,null,null,null,null,null,null,null,null,null,null,null,null,null,null,null,null,null,null,null,null,null,null,null,null,null,null,null,null,null,null,null,null,null,null,null,null,null,null,null,null,null,null,null,null,null,null,null,null,null,null,null,null,null,null,null,null,null,null,null,null,null,null,null,null,null,null,null,null,null,null,null,null,null,null,null,null,null,null,null,null,null,null,null,null,null,null,null,null,null,null,null,null,null,null,null,null,null,null,null,null,null,null,null,null,null,null,null,null,null,null,null,null,null,null,null,null,null,null,null,null,null,null,null,null,null,null,null,null,null,null,null,null,null,null,null,null,null,null,null,null,null,null,null,null,null,null,null,null,null,null,null,null,null,null,null,null,null,null,null,null,null,null,null,null,null,null,null,null,null,null,null,null,null,null,null,null,null,null,null,null,null,null,null,null,null,null,null,null,null,null,null,null,null,null,null,null,null,null,null,null,null,null,null,null,null,null,null,null,null,null,null,null,null,null,null,null,null,null,null,null,null,null,null,null,null,null,null,null,null,null,null,null,null,null,null,null,null,null,null,null,null,null,null,null,null,null,null,null,null,null,null,null,null,null,null,null,null,null,null,null,null,null,null,null,null,null,null,null,null,null,null,null,null,null,null,null,null,null,null,null,null,null,null,null,null,null,null,null,null,null,null,null,null,null,null,null,null,null,null,null,null,null,null,null,null,null,null,null,null,null,null,null,null,null,null,null,null,null,null,null,null,null,null,null,null,null,null,null,null,null,null,null,null,null,null,null,null,null,null,null,null,null,null,null,null,null,null,null,null,null,null,null,null,null,null,null,null,null,null,null,{"$f":"COUNTIF(OFFSET($A27,,MATCH(DATE(année,$NM$1,1),$5:$5,0)-1,,DAY(DATE(année,$NM$1+1,0))),0)","v":0}]
[null,null,null,null,null,null,null,null,null,null,null,null,null,null,null,null,null,null,null,null,null,null,null,null,null,null,null,null,null,null,null,null,null,null,null,null,null,null,null,null,null,null,null,null,null,null,null,null,null,null,null,null,null,null,null,null,null,null,null,null,null,null,null,null,null,null,null,null,null,null,null,null,null,null,null,null,null,null,null,null,null,null,null,null,null,null,null,null,null,null,null,null,null,null,null,null,null,null,null,null,null,null,null,null,null,null,null,null,null,null,null,null,null,null,null,null,null,null,null,null,null,null,null,null,null,null,null,null,null,null,null,null,null,null,null,null,null,null,null,null,null,null,null,null,null,null,null,null,null,null,null,null,null,null,null,null,null,null,null,null,null,null,null,null,null,null,null,null,null,null,null,null,null,null,null,null,null,null,null,null,null,null,null,null,null,null,null,null,null,null,null,null,null,null,null,null,null,null,null,null,null,null,null,null,null,null,null,null,null,null,null,null,null,null,null,null,null,null,null,null,null,null,null,null,null,null,null,null,null,null,null,null,null,null,null,null,null,null,null,null,null,null,null,null,null,null,null,null,null,null,null,null,null,null,null,null,null,null,null,null,null,null,null,null,null,null,null,null,null,null,null,null,null,null,null,null,null,null,null,null,null,null,null,null,null,null,null,null,null,null,null,null,null,null,null,null,null,null,null,null,null,null,null,null,null,null,null,null,null,null,null,null,null,null,null,null,null,null,null,null,null,null,null,null,null,null,null,null,null,null,null,null,null,null,null,null,null,null,null,null,null,null,null,null,null,null,null,null,null,null,null,null,null,null,null,null,null,null,null,null,null,null,null,null,null,null,null,null,null,null,null,null,null,null,null,null,{"$f":"COUNTIF(OFFSET($A28,,MATCH(DATE(année,$NM$1,1),$5:$5,0)-1,,DAY(DATE(année,$NM$1+1,0))),0)","v":0}]
[null,null,null,null,null,null,null,null,null,null,null,null,null,null,null,null,null,null,null,null,null,null,null,null,null,null,null,null,null,null,null,null,null,null,null,null,null,null,null,null,null,null,null,null,null,null,null,null,null,null,null,null,null,null,null,null,null,null,null,null,null,null,null,null,null,null,null,null,null,null,null,null,null,null,null,null,null,null,null,null,null,null,null,null,null,null,null,null,null,null,null,null,null,null,null,null,null,null,null,null,null,null,null,null,null,null,null,null,null,null,null,null,null,null,null,null,null,null,null,null,null,null,null,null,null,null,null,null,null,null,null,null,null,null,null,null,null,null,null,null,null,null,null,null,null,null,null,null,null,null,null,null,null,null,null,null,null,null,null,null,null,null,null,null,null,null,null,null,null,null,null,null,null,null,null,null,null,null,null,null,null,null,null,null,null,null,null,null,null,null,null,null,null,null,null,null,null,null,null,null,null,null,null,null,null,null,null,null,null,null,null,null,null,null,null,null,null,null,null,null,null,null,null,null,null,null,null,null,null,null,null,null,null,null,null,null,null,null,null,null,null,null,null,null,null,null,null,null,null,null,null,null,null,null,null,null,null,null,null,null,null,null,null,null,null,null,null,null,null,null,null,null,null,null,null,null,null,null,null,null,null,null,null,null,null,null,null,null,null,null,null,null,null,null,null,null,null,null,null,null,null,null,null,null,null,null,null,null,null,null,null,null,null,null,null,null,null,null,null,null,null,null,null,null,null,null,null,null,null,null,null,null,null,null,null,null,null,null,null,null,null,null,null,null,null,null,null,null,null,null,null,null,null,null,null,null,null,null,null,null,null,null,null,null,null,null,null,null,null,null,null,null,null,null,null,null,{"$f":"COUNTIF(OFFSET($A29,,MATCH(DATE(année,$NM$1,1),$5:$5,0)-1,,DAY(DATE(année,$NM$1+1,0))),0)","v":0}]
[null,null,null,null,null,null,null,null,null,null,null,null,null,null,null,null,null,null,null,0,null,null,null,null,null,null,null,null,null,null,null,null,null,null,null,null,null,null,null,null,null,null,null,null,null,null,null,null,null,null,null,null,null,null,null,null,null,null,null,null,null,null,null,null,null,null,null,null,null,null,null,null,null,null,null,null,null,null,null,null,null,null,null,null,null,null,null,null,null,null,null,null,null,null,null,null,null,null,null,null,null,null,null,null,null,null,null,null,null,null,null,null,null,null,null,null,null,null,null,null,null,null,null,null,null,null,null,null,null,null,null,null,null,null,null,null,null,null,null,null,null,null,null,null,null,null,null,null,null,null,null,null,null,null,null,null,null,null,null,null,null,null,null,null,null,null,null,null,null,null,null,null,null,null,null,null,null,null,null,null,null,null,null,null,null,null,null,null,null,null,null,null,null,null,null,null,null,null,null,null,null,null,null,null,null,null,null,null,null,null,null,null,null,null,null,null,null,null,null,null,null,null,null,null,null,null,null,null,null,null,null,null,null,null,null,null,null,null,null,null,null,null,null,null,null,null,null,null,null,null,null,null,null,null,null,null,null,null,null,null,null,null,null,null,null,null,null,null,null,null,null,null,null,null,null,null,null,null,null,null,null,null,null,null,null,null,null,null,null,null,null,null,null,null,null,null,null,null,null,null,null,null,null,null,null,null,null,null,null,null,null,null,null,null,null,null,null,null,null,null,null,null,null,null,null,null,null,null,null,null,null,null,null,null,null,null,null,null,null,null,null,null,null,null,null,null,null,null,null,null,null,null,null,null,null,null,null,null,null,null,null,null,null,null,null,null,null,null,null,null,null,null,null,null,null,null,{"$f":"COUNTIF(OFFSET($A30,,MATCH(DATE(année,$NM$1,1),$5:$5,0)-1,,DAY(DATE(année,$NM$1+1,0))),0)","v":1}]
[null,null,null,null,null,0,null,null,null,null,null,null,null,null,null,null,null,null,null,null,null,null,null,null,null,null,null,null,null,null,null,null,null,null,null,null,null,null,null,null,null,null,null,null,null,null,null,null,null,null,null,null,null,null,null,null,null,null,null,null,null,null,null,null,null,null,null,null,null,null,null,null,null,null,null,null,null,null,null,null,null,null,null,null,null,null,null,null,null,null,null,null,null,null,null,null,null,null,null,null,null,null,null,null,null,null,null,null,null,null,null,null,null,null,null,null,null,null,null,null,null,null,null,null,null,null,null,null,null,null,null,null,null,null,null,null,null,null,null,null,null,null,null,null,null,null,null,null,null,null,null,null,null,null,null,null,null,null,null,null,null,null,null,null,null,null,null,null,null,null,null,null,null,null,null,null,null,null,null,null,null,null,null,null,null,null,null,null,null,null,null,null,null,null,null,null,null,null,null,null,null,null,null,null,null,null,null,null,null,null,null,null,null,null,null,null,null,null,null,null,null,null,null,null,null,null,null,null,null,null,null,null,null,null,null,null,null,null,null,null,null,null,null,null,null,null,null,null,null,null,null,null,null,null,null,null,null,null,null,null,null,null,null,null,null,null,null,null,null,null,null,null,null,null,null,null,null,null,null,null,null,null,null,null,null,null,null,null,null,null,null,null,null,null,null,null,null,null,null,null,null,null,null,null,null,null,null,null,null,null,null,null,null,null,null,null,null,null,null,null,null,null,null,null,null,null,null,null,null,null,null,null,null,null,null,null,null,null,null,null,null,null,null,null,null,null,null,null,null,null,null,null,null,null,null,null,null,null,null,null,null,null,null,null,null,null,null,null,null,null,null,null,null,null,null,null,{"$f":"COUNTIF(OFFSET($A31,,MATCH(DATE(année,$NM$1,1),$5:$5,0)-1,,DAY(DATE(année,$NM$1+1,0))),0)","v":1}]
[null,null,null,null,null,null,null,null,null,null,null,null,null,null,null,null,null,null,null,null,null,null,null,null,null,null,null,null,null,null,null,null,null,null,null,null,null,null,null,null,null,null,null,null,null,null,null,null,null,null,null,null,null,null,null,null,null,null,null,null,null,null,null,null,null,null,null,null,null,null,null,null,null,null,null,null,null,null,null,null,null,null,null,null,null,null,null,null,null,null,null,null,null,null,null,null,null,null,null,null,null,null,null,null,null,null,null,null,null,null,null,null,null,null,null,null,null,null,null,null,null,null,null,null,null,null,null,null,null,null,null,null,null,null,null,null,null,null,null,null,null,null,null,null,null,null,null,null,null,null,null,null,null,null,null,null,null,null,null,null,null,null,null,null,null,null,null,null,null,null,null,null,null,null,null,null,null,null,null,null,null,null,null,null,null,null,null,null,null,null,null,null,null,null,null,null,null,null,null,null,null,null,null,null,null,null,null,null,null,null,null,null,null,null,null,null,null,null,null,null,null,null,null,null,null,null,null,null,null,null,null,null,null,null,null,null,null,null,null,null,null,null,null,null,null,null,null,null,null,null,null,null,null,null,null,null,null,null,null,null,null,null,null,null,null,null,null,null,null,null,null,null,null,null,null,null,null,null,null,null,null,null,null,null,null,null,null,null,null,null,null,null,null,null,null,null,null,null,null,null,null,null,null,null,null,null,null,null,null,null,null,null,null,null,null,null,null,null,null,null,null,null,null,null,null,null,null,null,null,null,null,null,null,null,null,null,null,null,null,null,null,null,null,null,null,null,null,null,null,null,null,null,null,null,null,null,null,null,null,null,null,null,null,null,null,null,null,null,null,null,null,null,null,null,null,null,{"$f":"COUNTIF(OFFSET($A32,,MATCH(DATE(année,$NM$1,1),$5:$5,0)-1,,DAY(DATE(année,$NM$1+1,0))),0)","v":0}]
[null,null,null,null,null,null,null,null,null,null,null,null,null,null,null,null,null,null,null,null,null,null,null,null,null,null,null,null,null,null,null,null,null,null,null,null,null,null,null,null,null,null,null,null,null,null,null,null,null,null,null,null,null,null,null,null,null,null,null,null,null,null,null,null,null,null,null,null,null,null,null,null,null,null,null,null,null,null,null,null,null,null,null,null,null,null,null,null,null,null,null,null,null,null,null,null,null,null,null,null,null,null,null,null,null,null,null,null,null,null,null,null,null,null,null,null,null,null,null,null,null,null,null,null,null,null,null,null,null,null,null,null,null,null,null,null,null,null,null,null,null,null,null,null,null,null,null,null,null,null,null,null,null,null,null,null,null,null,null,null,null,null,null,null,null,null,null,null,null,null,null,null,null,null,null,null,null,null,null,null,null,null,null,null,null,null,null,null,null,null,null,null,null,null,null,null,null,null,null,null,null,null,null,null,null,null,null,null,null,null,null,null,null,null,null,null,null,null,null,null,null,null,null,null,null,null,null,null,null,null,null,null,null,null,null,null,null,null,null,null,null,null,null,null,null,null,null,null,null,null,null,null,null,null,null,null,null,null,null,null,null,null,null,null,null,null,null,null,null,null,null,null,null,null,null,null,null,null,null,null,null,null,null,null,null,null,null,null,null,null,null,null,null,null,null,null,null,null,null,null,null,null,null,null,null,null,null,null,null,null,null,null,null,null,null,null,null,null,null,null,null,null,null,null,null,null,null,null,null,null,null,null,null,null,null,null,null,null,null,null,null,null,null,null,null,null,null,null,null,null,null,null,null,null,null,null,null,null,null,null,null,null,null,null,null,null,null,null,null,null,null,null,null,null,null,null,{"$f":"COUNTIF(OFFSET($A33,,MATCH(DATE(année,$NM$1,1),$5:$5,0)-1,,DAY(DATE(année,$NM$1+1,0))),0)","v":0}]
[null,null,null,null,null,null,null,null,null,null,null,null,null,null,null,null,null,null,null,null,null,null,null,null,null,null,null,null,null,null,null,null,null,null,null,null,null,null,null,null,null,null,null,null,null,null,null,null,null,null,null,null,null,null,null,null,null,null,null,null,null,null,null,null,null,null,null,null,null,null,null,null,null,null,null,null,null,null,null,null,null,null,null,null,null,null,null,null,null,null,null,null,null,null,null,null,null,null,null,null,null,null,null,null,null,null,null,null,null,null,null,null,null,null,null,null,null,null,null,null,null,null,null,null,null,null,null,null,null,null,null,null,null,null,null,null,null,null,null,null,null,null,null,null,null,null,null,null,null,null,null,null,null,null,null,null,null,null,null,null,null,null,null,null,null,null,null,null,null,null,null,null,null,null,null,null,null,null,null,null,null,null,null,null,null,null,null,null,null,null,null,null,null,null,null,null,null,null,null,null,null,null,null,null,null,null,null,null,null,null,null,null,null,null,null,null,null,null,null,null,null,null,null,null,null,null,null,null,null,null,null,null,null,null,null,null,null,null,null,null,null,null,null,null,null,null,null,null,null,null,null,null,null,null,null,null,null,null,null,null,null,null,null,null,null,null,null,null,null,null,null,null,null,null,null,null,null,null,null,null,null,null,null,null,null,null,null,null,null,null,null,null,null,null,null,null,null,null,null,null,null,null,null,null,null,null,null,null,null,null,null,null,null,null,null,null,null,null,null,null,null,null,null,null,null,null,null,null,null,null,null,null,null,null,null,null,null,null,null,null,null,null,null,null,null,null,null,null,null,null,null,null,null,null,null,null,null,null,null,null,null,null,null,null,null,null,null,null,null,null,null,null,null,null,null,null,{"$f":"COUNTIF(OFFSET($A34,,MATCH(DATE(année,$NM$1,1),$5:$5,0)-1,,DAY(DATE(année,$NM$1+1,0))),0)","v":0}]
[null,null,null,null,null,null,null,null,null,null,null,null,null,null,null,null,null,null,null,null,null,null,null,null,null,null,null,null,null,null,null,null,null,null,null,null,null,null,null,null,null,null,null,null,null,null,null,null,null,null,null,null,null,null,null,null,null,null,null,null,null,null,null,null,null,null,null,null,null,null,null,null,null,null,null,null,null,null,null,null,null,null,null,null,null,null,null,null,null,null,null,null,null,null,null,null,null,null,null,null,null,null,null,null,null,null,null,null,null,null,null,null,null,null,null,null,null,null,null,null,null,null,null,null,null,null,null,null,null,null,null,null,null,null,null,null,null,null,null,null,null,null,null,null,null,null,null,null,null,null,null,null,null,null,null,null,null,null,null,null,null,null,null,null,null,null,null,null,null,null,null,null,null,null,null,null,null,null,null,null,null,null,null,null,null,null,null,null,null,null,null,null,null,null,null,null,null,null,null,null,null,null,null,null,null,null,null,null,null,null,null,null,null,null,null,null,null,null,null,null,null,null,null,null,null,null,null,null,null,null,null,null,null,null,null,null,null,null,null,null,null,null,null,null,null,null,null,null,null,null,null,null,null,null,null,null,null,null,null,null,null,null,null,null,null,null,null,null,null,null,null,null,null,null,null,null,null,null,null,null,null,null,null,null,null,null,null,null,null,null,null,null,null,null,null,null,null,null,null,null,null,null,null,null,null,null,null,null,null,null,null,null,null,null,null,null,null,null,null,null,null,null,null,null,null,null,null,null,null,null,null,null,null,null,null,null,null,null,null,null,null,null,null,null,null,null,null,null,null,null,null,null,null,null,null,null,null,null,null,null,null,null,null,null,null,null,null,null,null,null,null,null,null,null,null,null,{"$f":"COUNTIF(OFFSET($A35,,MATCH(DATE(année,$NM$1,1),$5:$5,0)-1,,DAY(DATE(année,$NM$1+1,0))),0)","v":0}]